Cogmind - Beta 13 @@@ ROGUE MODE // 2024.05.16 @ 00:51:14 Player: Wyvric Result: Escaped! Performance ------------- Evolutions (9) 4500 Regions Visited (32) 6400 Robots Destroyed (346) 1730 Value Destroyed (17215) 17215 Prototype IDs (299) 5980 Alien Tech Used (8) 1600 Bonus (34192) 34192 TOTAL SCORE: 71617 Bonus ------- High Alert Combat Kills 2914 Follower Combat Kills 2532 Network Hubs Disabled 600 Met Imprinter 300 Destroyed Z-Imprinter 1000 Triggered Deep Caves Wall 500 Exposed GOLEM Chamber 500 Met Zhirov 300 Met Warlord at Base 500 MAIN.C Attacked Warlord 500 Built Enhanced Grunts 300 A7 Reached Mainframe 300 Met R17 at Cetus 500 Met R17 at Research 2000 Met Warlord at Research 2000 Scanned by Researcher 500 Acquired SGEMP 2000 Delivered SGEMP 2000 Destroyed MAIN.C Guards 500 Met MAIN.C 5000 Destroyed MAIN.C Shell 5000 Zhirov Destroyed MAIN.C 3000 Win 3000 Friendly Fire -1554 Cogmind --------- Core Integrity 1446/1850 Matter 289/300 Energy 577/607 System Corruption 0% Temperature Cool (8) Movement Hovering (55) Location To Epsilon Eridani Parts ------- > --- POWER (2) -------- Chain-Quantum Reactor > --- PROPULSION (8) --- Hovering Cooled-Biometal Exoskeleton Antigrav Array > --- UTILITY (12) ----- Armored Scrap Engine Cargo Storage Unit Experimental Targeting Computer Experimental Core Analyzer Improved Armor Integrity Analyzer Advanced Weapon Cycler Heavy Regenerative Plating AEGIS Remote Shield Advanced System Restoration Module > --- WEAPON (4) ------- Hvy. Laser Construct/C > --- INVENTORY (30) --- Reinforced Quantum Reactor Zero-point Reactor Zero-point Reactor Advanced Cooling System 2N-1CE's Frost Array Experimental Energy Well (600) Experimental Energy Well (600) Quantum Capacitor Experimental Weapon Shielding Centrium Heavy Armor Plating Centrium Heavy Armor Plating SHELL Armor Graphene Brace Long-range Tractor Beam Subatomic Replicator Spacefold Activator Hardcell Cannon Linear Accelerator Compact Linear Accelerator Compact Linear Accelerator Hellfire Missile Launcher Peak State ------------ > --- POWER ------------ Chain-Quantum Reactor > --- PROPULSION ------- Experimental Biometal Heavy Treads Hovering Cooled-Biometal Exoskeleton > --- UTILITY ---------- Armored Scrap Engine 2N-1CE's Frost Array Cargo Storage Unit Experimental Targeting Computer Experimental Core Analyzer Improved Armor Integrity Analyzer Advanced Weapon Cycler Centrium Heavy Armor Plating AEGIS Remote Shield > --- WEAPON ----------- Hvy. Laser Construct/C > --- INVENTORY -------- Reinforced Quantum Reactor Zero-point Reactor Zero-point Reactor Armored Heavy Treads Armored Heavy Treads Advanced Cooling System Experimental Energy Well Experimental Energy Well Quantum Capacitor Experimental Weapon Shielding Centrium Heavy Armor Plating SHELL Armor Graphene Brace Advanced System Restoration Module Long-range Tractor Beam Subatomic Replicator Spacefold Activator Cooled Nova Cannon Hardcell Cannon Linear Accelerator Compact Linear Accelerator Compact Linear Accelerator Hellfire Missile Launcher Hellfire Missile Launcher [Rating: 237] Favorites ----------- Power Constructs Engine F-cell Engine Power Core Fission Core Reactor Constructs Propulsion Constructs Treads Advanced Treads Leg Armored Leg Wheel Armored Wheel Hover Unit Constructs Flight Unit Nuclear Pulse Array Utility Armored Scrap Engine Device Armored Scrap Engine Storage Huge Storage Unit Processor Experimental Armor Integrity Analyzer Hackware Improved Hacking Suite Protection Heavy Regenerative Plating Artifact Spacefold Activator Weapon Constructs Energy Gun Improved EM Shotgun Energy Cannon Constructs Ballistic Gun Flak Gun Ballistic Cannon Heavy Autocannon Launcher Rocket Array Special Weapon Field Lobotomy Kit Impact Weapon Powered Hammer Slashing Weapon Ionic Axe Build | -11 -10 -9 -9 -9 -7 -7 -7 -7 -7 -6 -6 -6 -6 -6 -6 -5 -5 -5 -5 -4 -4 -4 -4 -4 -3 -3 -3 -3 -2 -2 -1 -1 ------- Run | Yrd Mat Mat Sto Rec Fac Low Low Zio Dee Pro Fac Ext Cet Arc Hub Fac Upp Upp Zhi Pro Fac Upp Upp War Pro Res Qua Sec Res Tes Acc Com Slots Evolved 18 | . . 2 . . 4 . . . . . 2 . . . . 2 . . . . 2 . . . . 2 . . 2 . 2 . Power 1 | . . . . . . . . . . . . . . . . . . . . . 1 . . . . . . . . . . . Propulsion 6 | . . . . . 2 . . . . . 2 . . . . . . . . . 1 . . . . . . . 1 . . . Utility 9 | . . 1 . . 2 . . . . . . . . . . 1 . . . . . . . . . 2 . . 1 . 2 . Weapon 2 | . . 1 . . . . . . . . . . . . . 1 . . . . . . . . . . . . . . . . Parts Attached 698 | 6 10 27 24 7 23 23 7 15 31 3 43 32 10 4 9 85 22 12 7 10 27 2 3 30 2 33 14 40 43 51 22 21 Power 17 | 1 1 . 4 . . 2 . . 1 . . . . . . . 2 . . . 1 . . 3 . . . . 2 . . . Engine 10 | 1 1 . 4 . . 2 . . . . . . . . . . 2 . . . . . . . . . . . . . . . Core 1 | . . . . . . . . . . . . . . . . . . . . . . . . . . . . . 1 . . . Reactor 6 | . . . . . . . . . 1 . . . . . . . . . . . 1 . . 3 . . . . 1 . . . Propulsion 103 | 2 2 4 2 1 5 5 . 2 3 . 7 . 5 1 . 15 1 3 4 . 5 . . 11 . 5 1 2 6 6 . 5 Treads 35 | . 2 4 2 1 3 3 . 2 2 . . . . 1 . 5 . 2 . . . . . . . 3 . . 1 1 . 3 Leg 36 | 2 . . . . . . . . . . 4 . 5 . . 8 . . . . . . . 7 . 2 1 . 2 5 . . Wheel 2 | . . . . . . 2 . . . . . . . . . . . . . . . . . . . . . . . . . . Hover 22 | . . . . . 2 . . . 1 . 3 . . . . . . . 4 . 5 . . 3 . . . 2 1 . . 1 Flight 8 | . . . . . . . . . . . . . . . . 2 1 1 . . . . . 1 . . . . 2 . . 1 Utility 433 | 1 3 10 3 3 11 11 3 9 18 3 28 21 3 3 9 56 16 9 2 9 16 2 3 13 1 21 12 25 26 45 22 16 Device 298 | . 1 3 . 1 7 6 3 2 6 2 24 17 3 3 3 43 13 9 2 8 12 2 2 10 . 13 10 15 19 32 16 11 Storage 18 | 1 2 . 1 2 1 . . 1 1 . 1 1 . . . . . . . . 1 . . . . 1 . 1 1 2 . 1 Processor 27 | . . . . . 3 . . 5 1 1 2 1 . . . 3 . . . . . . . 1 . 1 . 1 5 1 2 . Hackware 7 | . . . . . . . . . . . 1 . . . 2 1 . . . . 2 . . . . . . 1 . . . . Protection 70 | . . 7 2 . . 5 . 1 10 . . 2 . . 4 9 3 . . 1 1 . 1 2 1 6 1 2 . 6 2 4 Artifact 13 | . . . . . . . . . . . . . . . . . . . . . . . . . . . 1 5 1 4 2 . Weapon 145 | 2 4 13 15 3 7 5 4 4 9 . 8 11 2 . . 14 3 . 1 1 5 . . 3 1 7 1 13 9 . . . Energy Gun 34 | . 2 6 7 . 2 1 . . 2 . . . 1 . . 3 . . . . 1 . . 1 . 2 . 4 2 . . . Energy Cannon 27 | . . . 1 . . 2 4 1 1 . 4 1 . . . 3 . . . . 4 . . . . . . 2 4 . . . Ballistic Gun 24 | 2 2 6 5 3 1 1 . 2 1 . 1 . . . . . . . . . . . . . . . . . . . . . Ballistic Cannon 17 | . . . . . 2 . . . . . . 2 . . . . . . . . . . . . 1 5 . 6 1 . . . Launcher 21 | . . 1 2 . 1 1 . . 1 . 1 1 . . . 6 3 . 1 . . . . . . . 1 . 2 . . . Special Weapon 2 | . . . . . . . . . 1 . . . . . . . . . . . . . . . . . . 1 . . . . Impact Weapon 12 | . . . . . 1 . . 1 2 . 2 4 . . . . . . . 1 . . . 1 . . . . . . . . Slashing Weapon 8 | . . . . . . . . . 1 . . 3 1 . . 2 . . . . . . . 1 . . . . . . . . Piercing Weapon . | . . . . . . . . . . . . . . . . . . . . . . . . . . . . . . . . . Special Melee Weapon . | . . . . . . . . . . . . . . . . . . . . . . . . . . . . . . . . . Unidentified Prototypes 55 | . . 2 5 . . . 1 5 11 . . . 1 1 1 4 . . 2 . 1 . . 5 . 1 1 3 2 5 . 4 Corrupted Parts 1 | . . . . . . . . . . 1 . . . . . . . . . . . . . . . . . . . . . . System Corruption 1 | . . . . . . . . . . 1 . . . . . . . . . . . . . . . . . . . . . . Parts Lost 40 | . 1 . 2 . 3 2 . . 1 . . 2 . . 2 5 . . . 2 2 . . 1 1 . 1 14 1 . . . Power 6 | . . . . . . 1 . . . . . . . . 1 2 . . . . . . . . . . . 2 . . . . Propulsion 6 | . . . 1 . 1 1 . . . . . . . . . . . . . . 1 . . 1 . . . 1 . . . . Utility 9 | . . . 1 . . . . . 1 . . 2 . . 1 . . . . . . . . . 1 . . 3 . . . . Weapon 19 | . 1 . . . 2 . . . . . . . . . . 3 . . . 2 1 . . . . . 1 8 1 . . . Highest Loss Streak 8 | . 1 . 1 . 2 2 . . 1 . . 1 . . 1 2 . . . 2 2 . . 1 1 . 1 8 1 . . . To Critical Strikes . | . . . . . . . . . . . . . . . . . . . . . . . . . . . . . . . . . Average Slot Usage (%) 65 | . 99 98 99 61 76 74 77 73 68 71 65 67 62 57 55 63 60 65 63 65 63 56 55 57 59 57 53 47 50 53 43 47 Engine 3 | . 14 11 11 10 7 5 7 7 . . . 3 1 . 3 2 3 5 5 5 2 . . . 3 1 . . . . . . Reactor 2 | . . . . . . . . . 6 7 6 2 4 6 2 . 1 . . . . . . 1 . 2 4 3 3 4 3 3 Treads 6 | . 13 21 21 10 9 19 . 13 5 . . . . 8 12 10 . 4 . . . 4 5 3 . 2 2 4 . 2 3 2 Leg 2 | . 14 . . . . . . . . . 1 17 17 5 . 4 . . . . . . . 3 15 7 10 . 2 7 3 . Hover 2 | . . . . 5 14 . . . 3 7 11 . . . . . . . 3 11 13 11 10 4 . . . 3 . . . . Flight 1 | . . . . . . . . . . . . . . . . . 10 8 6 . . . . . . . . . 4 . . . Device 14 | . 13 4 11 11 13 13 20 16 13 20 14 15 12 11 8 12 14 16 16 15 13 15 14 14 19 17 14 9 15 11 10 14 Storage 6 | . 14 11 11 11 7 7 7 7 7 7 6 6 6 6 6 5 5 5 5 5 5 5 5 5 5 4 4 4 4 4 3 3 Processor 8 | . . . . . 8 7 7 7 7 7 9 6 12 12 6 11 11 11 11 11 10 10 10 10 5 8 9 8 7 16 9 11 Protection 2 | . . 16 11 . . 1 . 1 5 . . . . . 1 2 1 . . . . . . . . 3 1 . . . 2 3 Energy Gun 3 | . 5 10 28 3 . . 7 7 6 7 3 1 . . . 1 . . . . 1 . . 3 2 2 . . 2 . . . Energy Cannon 3 | . . . 1 1 . 1 14 9 3 7 4 1 5 5 3 4 4 . . . 4 6 . 4 4 1 . 2 3 4 3 2 Ballistic Gun 3 | . 22 21 2 7 5 12 . 1 4 . . . . . . . . . . . 1 . . . . . . . . . . . Ballistic Cannon 1 | . . . . 2 6 . . . . . . 5 . . 2 2 . 5 5 5 . . 4 . 2 2 4 2 . . . . Naked Turns . | . . . . . . . . . . . . . . . . . . . . . . . . . . . . . . . . . Heaviest Build 273 | 14 30 40 65 95 103 114 115 116 109 105 110 116 105 105 118 135 129 124 124 126 121 108 107 132 175 229 242 273 158 223 232 262 Greatest Support 450 | 20 40 46 46 46 84 92 88 118 124 117 137 122 122 120 199 199 134 183 104 77 130 179 179 238 180 255 227 251 189 376 240 450 Greatest Overweight (x) 8 | . 1 1 1 3 2 8 1 1 1 . 1 1 . 1 . 1 1 1 1 1 1 . . . . 1 1 1 1 3 . 1 Average Overweight (x) . | . . . . 1 . 1 1 . . . . . . . . . . . 1 1 . . . . . . . . . . . . Largest Inventory Capacity 30 | 8 15 15 20 25 25 25 25 25 25 25 25 25 25 25 25 25 25 25 25 25 25 25 25 25 25 30 30 30 25 30 30 30 Average Capacity 24 | 7 10 15 16 20 24 25 25 25 25 25 25 25 25 25 25 25 25 25 25 25 25 25 25 25 25 26 30 29 25 27 30 30 Most Carried 30 | 6 11 15 20 21 25 25 25 25 25 25 25 25 25 25 25 25 25 25 25 25 25 25 25 25 25 30 30 30 25 30 30 30 Average Carried 23 | 3 9 14 16 18 23 24 24 24 24 24 24 23 24 24 24 24 22 23 23 24 24 24 24 24 24 25 29 26 23 26 27 28 Final Capacity 30 | 8 15 15 20 20 25 25 25 25 25 25 25 25 25 25 25 25 25 25 25 25 25 25 25 25 25 30 30 25 25 30 30 30 Final Carried 30 | 6 11 15 20 13 24 25 25 25 25 25 22 25 25 25 24 25 24 25 25 24 25 25 25 25 24 30 30 20 25 30 29 26 Scrap Engine Consumption 594 | . . . . 37 28 15 2 9 39 . 29 32 16 8 13 56 7 9 6 1 19 4 5 34 3 26 2 25 63 41 11 54 Constructs Created 14 | . . . . 3 . 2 . . 1 . . . . . 1 2 1 . . . 1 . . . . 1 . . 2 . . . Constructs Modified 260 | . . . . 10 3 15 . 1 10 . 22 18 6 4 5 17 6 3 5 . 5 6 2 7 7 13 2 13 24 20 . 36 Class Distribution -------------------- 34% | Construct 14% | Hauler-Construct 13% | Mutant 10% | Commander-Construct 7% | Skirmisher 4% | Tank 3% | Gunner Dominant Class ---------------- Mutant | -10/Materials Tank | -9/Materials Commander-Tank | -9/Storage Commander-Construct | -9/Recycling Construct | -7/Factory Mutant | -7/Lower Caves Skirmisher | -7/Lower Caves Skirmisher | -7/Zion Construct | -7/Deep Caves Construct | -6/Proximity Caves Construct | -6/Factory Commander-Construct | -6/Extension Commander-Construct | -6/Cetus Commander-Construct | -6/Archives Hacker-Construct | -6/Hub_04(d) Construct | -5/Factory Assassin | -5/Upper Caves Construct | -5/Upper Caves Construct | -5/Zhirov Construct | -4/Proximity Caves Mutant | -4/Factory Construct | -4/Upper Caves Construct | -4/Upper Caves Commander-Construct | -4/Warlord Scavenger-Construct | -3/Proximity Caves Construct | -3/Research Hauler-Construct | -3/Quarantine Hauler-Construct | -3/Section 7 Mutant | -2/Research Hauler-Construct | -2/Testing Hauler-Construct | -1/Access Hauler-Construct | -1/Command Resources | -11 -10 -9 -9 -9 -7 -7 -7 -7 -7 -6 -6 -6 -6 -6 -6 -5 -5 -5 -5 -4 -4 -4 -4 -4 -3 -3 -3 -3 -2 -2 -1 -1 ----------- Run | Yrd Mat Mat Sto Rec Fac Low Low Zio Dee Pro Fac Ext Cet Arc Hub Fac Upp Upp Zhi Pro Fac Upp Upp War Pro Res Qua Sec Res Tes Acc Com Matter Collected 10992 | 227 284 506 656 266 325 545 126 102 456 155 621 537 167 70 39 992 259 552 . 149 464 11 241 309 200 492 107 475 577 510 120 452 Remotely 297 | . . . . . . . . . . . . . . . . . . 10 . . . . . . . 267 20 . . . . . Salvage Created 19206 | . 354 1285 1275 616 959 382 . . 195 293 682 519 238 154 273 1896 489 230 . 176 536 . 162 . 74 340 393 688 289 984 1241 4483 Parts 853 | . 14 70 84 25 54 22 . . 14 11 12 13 5 17 14 96 18 8 . 2 21 . 6 . . 15 18 23 13 67 43 168 Haulers Intercepted 5 | . . 2 . . . . . . . . . . . . . 2 . . . . . . . . . . . . . . 1 . Recyclers Shooed 8 | . . 1 2 2 . . . . . . 1 . . . 1 . . . . . . . . . . . . 1 . . . . Parts Field Recycled . | . . . . . . . . . . . . . . . . . . . . . . . . . . . . . . . . . Retrieved Matter . | . . . . . . . . . . . . . . . . . . . . . . . . . . . . . . . . . Parts Self-Destructed 49 | . . . . . . 18 . . . 10 . . . . . . 7 7 . 1 . . 3 . 3 . . . . . . . Prevented 2 | . . . . . . . . . . . . . . . . . 2 . . . . . . . . . . . . . . . Kills | -11 -10 -9 -9 -9 -7 -7 -7 -7 -7 -6 -6 -6 -6 -6 -6 -5 -5 -5 -5 -4 -4 -4 -4 -4 -3 -3 -3 -3 -2 -2 -1 -1 ------- Run | Yrd Mat Mat Sto Rec Fac Low Low Zio Dee Pro Fac Ext Cet Arc Hub Fac Upp Upp Zhi Pro Fac Upp Upp War Pro Res Qua Sec Res Tes Acc Com Combat Hostiles Destroyed 272 | . 12 22 26 2 20 12 . . 4 6 7 7 3 . 4 28 14 11 . 6 8 . 4 . 2 4 5 10 3 11 15 26 Melee 16 | . . . . . 1 . . . . . 2 2 1 . 1 1 . . . 1 4 . 2 . . . 1 . . . . . Guns 71 | . 11 18 17 1 4 9 . . 4 2 . . . . . . . . . . 1 . . . . . . 4 . . . . Cannons 120 | . . . . 1 11 2 . . . . 2 3 2 . 3 23 4 1 . 1 2 . 2 . 1 4 . 5 3 11 15 24 AOE 54 | . 1 4 9 . 4 1 . . . 4 . 1 . . . 3 9 10 . 4 . . . . . . 4 . . . . . Classes Destroyed 27 | . 2 8 3 3 1 . . . 1 . . 1 . . . . 1 . . . . . . . . . 1 1 1 2 1 1 Worker 16 | . . 6 1 1 3 . . . . . 1 . . . 1 1 . . . . . . . . . . 1 . . . 1 . Builder 7 | . . 1 1 . 4 . . . . . . . . . . 1 . . . . . . . . . . . . . . . . Tunneler 1 | . . . . . 1 . . . . . . . . . . . . . . . . . . . . . . . . . . . Hauler 5 | . . 2 . . . . . . . . . . . . . 2 . . . . . . . . . . . . . . 1 . Recycler 9 | . . 1 1 1 . . . . . . 2 1 . . . 1 . . . . 1 . . . . . 1 . . . . . Mechanic 2 | . . . 2 . . . . . . . . . . . . . . . . . . . . . . . . . . . . . Operator 12 | . . 1 1 . . . . . . . . . . 4 . . . . . . . . . . . . 1 1 . 3 . 1 Watcher 14 | . . 1 . . 2 . . . . . 1 . 1 . . 5 . . . . . . . . . 1 . . . . . 3 Swarmer 54 | . 6 . 4 1 6 6 . . . . . . . . . 6 5 5 . . . . 4 . . . 4 . . . 3 4 Saboteur 1 | . . . . . . . . . . . . . . . . . . . . . . . . . . . . . . . . 1 Grunt 108 | . 6 14 12 3 9 6 . . . 5 3 5 . . 2 5 8 3 . 3 . . . . 1 3 1 1 . 3 9 6 Brawler 7 | . . . 3 . . . . . . 1 . . . . 1 . . 1 . . . . . . . . . . . . . 1 Duelist 6 | . . 1 1 . . . . . . . . . . . 1 2 . . . . . . . . . . . . . . . 1 Protector 1 | . . . 1 . . . . . . . . . . . . . . . . . . . . . . . . . . . . . Researcher 1 | . . . . . . . . . . . . . . . . . . . . . . . . . . . 1 . . . . . Sentry 31 | . . 7 5 1 2 . . . . . 1 1 . . . 3 . 1 . . 2 . . . . 1 . 2 2 . 2 1 Demolisher 1 | . . . . 1 . . . . . . . . . . . . . . . . . . . . . . . . . . . . Specialist 1 | . . . . . . . . . . . . . . . . . . . . . . . . . . . . . . 1 . . Hunter 9 | . . . . 1 1 . . . . . 1 . . . . 2 . . . 2 . . . . . . . . . . . 2 Programmer 35 | . . . . 1 2 . . . . . 2 . . . . 10 . 1 . 1 6 . . . 1 . . 5 . 2 . 4 Heavy 2 | . . . . . . . . . . . . . . . . . . . . . . . . . . . . . . . 1 1 Q-Series 2 | . . . . . . . . . . . . . . . . . . . . . . . . . . . . . . 2 . . Behemoth 1 | . . . . . . . . . . . . 1 . . . . . . . . . . . . . . . . . . . . Cetus Guard 3 | . . . . . . . . . . . . . 3 . . . . . . . . . . . . . . . . . . . S7 Guard 1 | . . . . . . . . . . . . . . . . . . . . . . . . . . . . 1 . . . . M Guard 2 | . . . . . . . . . . . . . . . . . . . . . . . . . . . . . . . . 2 Enhanced Grunt 1 | . . . . . . . . . . . . . . . 1 . . . . . . . . . . . . . . . . . Combat Programmer 2 | . . . . . . . . . . . . . . . . . . . . . . . . . . . . . . . . 2 Striker 3 | . . . . . . . . . . . . . . . . . . . . . . . . . . . . . 1 2 . . Alpha 7 2 | . . . . . . . . . . . . . . . . . . . . . . . . . . . . 1 . 1 . . Z-Light 4 | . . . . . . . . . 4 . . . . . . . . . . . . . . . . . . . . . . . Mutant 1 | . . . . . . . . . . . . . . . . . 1 . . . . . . . . . . . . . . . Best Kill Streak 9 | . 3 9 6 1 9 4 . . 3 3 3 2 3 1 3 8 5 5 . 3 2 . 4 . 1 2 7 6 1 3 8 8 Combat Bots Only 8 | . 3 6 5 1 5 4 . . 3 3 3 2 2 . 2 5 5 5 . 3 2 . 4 . 1 2 5 6 1 3 8 7 Max Kills in Single Turn 6 | . 1 3 3 6 3 1 . . 1 2 1 1 1 1 1 2 3 5 . 1 1 . 1 . 1 1 2 2 1 1 2 3 Gunslinging 1 | . . 1 1 . . . . . . . . . . . . . . . . . . . . . . . . . . . . . Exploded 5 | . 1 2 2 . 2 1 . . . 2 . 1 . . . 2 3 5 . 1 . . . . . . 2 . . . . . Melee 1 | . . . . . 1 . . . . . 1 1 1 . 1 1 . . . 1 1 . 1 . . . 1 . . . . . Uniques/NPCs Destroyed 2 | . . . . . . . . . 1 . . . . . . . . . . . . . . . . . . . . . . 1 Z-Imprinter (-7/Deep Caves) MAIN.C Shell (-1/Command) Combat | -11 -10 -9 -9 -9 -7 -7 -7 -7 -7 -6 -6 -6 -6 -6 -6 -5 -5 -5 -5 -4 -4 -4 -4 -4 -3 -3 -3 -3 -2 -2 -1 -1 -------- Run | Yrd Mat Mat Sto Rec Fac Low Low Zio Dee Pro Fac Ext Cet Arc Hub Fac Upp Upp Zhi Pro Fac Upp Upp War Pro Res Qua Sec Res Tes Acc Com Hostile Shots Fired 2252 | . 47 56 63 2 108 54 . . 39 20 57 199 7 13 156 222 32 14 . 63 79 . 36 13 42 10 60 615 75 89 12 69 Missed 660 | . 13 15 16 . 33 10 . . 14 11 15 81 3 7 32 61 11 4 . 11 13 . 10 8 27 6 27 171 22 20 1 18 Intercepted 6 | . . . . . . . . . . . . . . . . . . . . . . . . . . . . . . . . 6 Damage Taken 34631 | . 424 585 762 101 1348 894 . . 771 185 651 1491 211 154 2421 3248 480 238 . 1016 1461 . 449 246 316 131 758 10802 1470 1869 667 1482 Core 4398 | . 91 111 110 24 291 105 . . 65 . 55 121 . . 209 309 44 17 . 110 122 . 24 22 . . 26 1575 145 418 323 81 Absorbed by Shields 1189 | . . . . . . . . . 144 . . 108 74 . . 251 . . . . . . . 54 . 5 . . 144 103 . 306 Reduced by Siege Mode 85 | . . . . . . . . . . . . . . . . 51 . . . . . . . . . . . . . 24 . 10 Redirected to Core 155 | . . . . . . . . . . . . . . . . . . . . . . . . . . . . 155 . . . . Redirected to Shielding 40 | . . . . . . . . . . . . . . . . . . . . . . . . . . . . . . . . 40 Ignored by Resistances 81 | . . . . . . . . . 39 . . . . . . . . 42 . . . . . . . . . . . . . . Regen/Repaired (Parts) 14154 | . . . . . 106 122 100 215 54 . 608 213 76 462 309 2145 380 178 2 . 769 394 143 554 . 49 69 3397 1378 981 251 1199 Core Remaining (%) 58 | 100 63 . . 38 . . . . . 34 . . . . 54 . . . . 52 . . . . 85 . . 19 . 66 . 78 Volleys Fired 939 | . 40 48 48 32 88 35 16 1 64 10 27 20 10 9 24 75 26 13 . 13 11 8 17 1 13 25 30 42 27 53 35 78 Largest 3 | . 2 3 3 2 3 3 2 1 3 3 3 2 2 1 1 2 1 1 . 1 3 1 1 1 1 2 1 3 3 1 1 1 Hottest 334 | . 80 168 168 50 121 170 127 62 110 137 180 176 334 255 255 315 174 180 . 180 242 98 98 40 173 197 107 220 296 212 212 279 Shots Fired 1296 | . 79 126 113 35 118 66 17 1 82 25 37 30 11 9 24 79 26 13 . 13 22 8 17 1 13 26 30 70 39 53 35 78 Gun 527 | . 79 117 109 30 39 53 1 1 27 10 15 2 1 . . 3 . . . . 9 . . 1 . . . 20 10 . . . Cannon 704 | . . . 1 5 76 11 16 . 55 10 22 23 10 9 24 68 22 2 . 6 13 8 17 . 13 26 24 48 29 53 35 78 Launcher 63 | . . 9 3 . 3 2 . . . 5 . 5 . . . 8 4 11 . 7 . . . . . . 6 . . . . . Special 2 | . . . . . . . . . . . . . . . . . . . . . . . . . . . . 2 . . . . Kinetic 442 | . 59 75 14 28 37 47 . . 18 . . 11 . . . 30 . . . 6 6 . 12 . 13 24 24 26 2 4 . 6 Thermal 633 | . . 42 28 7 59 17 17 1 64 20 37 14 11 9 24 32 17 2 . . 13 8 5 . . 2 . 22 37 46 35 64 Explosive 57 | . . 9 3 . 3 2 . . . 5 . 5 . . . 8 4 11 . 7 . . . . . . . . . . . . Electromagnetic 141 | . 20 . 68 . 19 . . . . . . . . . . 9 5 . . . 3 . . . . . 6 . . 3 . 8 Entropic 21 | . . . . . . . . . . . . . . . . . . . . . . . . 1 . . . 20 . . . . Robot Hit Streak 52 | . 6 17 21 16 13 9 . . 2 9 5 9 7 8 8 22 14 42 . 13 4 . 6 . 10 8 6 20 19 16 10 52 Robot Miss Streak 9 | . 4 4 5 2 2 4 . . 4 4 2 2 2 . 5 3 1 1 . 1 2 . 3 . 1 1 1 1 2 2 4 9 Penetration Max 1 | . . . . . . . . . . . . 1 . . . . . . . . . . . . . . . . . . . . Secondary Targets 16 | . 1 6 5 . . 4 . . . . . . . . . . . . . . . . . . . . . . . . . . Max Gunslinging Chain 2 | . 1 1 2 . . 1 . . . . . . . . . . . . . . . . . . . . . . . . . . Capacitor 22 | . . . . . . . . . . . . . . . . . . . . . . . . . . . . . . . 22 . Shots Hit Robots 804 | . 46 83 65 28 65 45 . . 19 16 33 40 9 8 15 51 18 9 . 13 38 . 5 . 9 13 5 50 21 24 16 60 Core Hits 645 | . 19 49 57 18 40 40 . . 14 17 5 27 12 3 13 40 31 44 . 31 8 . 3 . 2 5 8 19 7 12 25 96 Critical Kills 7 | . . . . . . . . . . . . 1 . . . . . . . . 3 . . . . . . 1 . . . 2 Critical Parts Destroyed 13 | . 1 1 . 1 . . . . . . 5 3 . . . . . . . . . . . . . . . . . . . 2 Critical Strikes 34 | . 1 6 2 1 . . . . . . 5 4 . 1 . 1 . . . 1 5 . . . 2 . . 1 . . . 4 Burn 8 | . . 5 2 . . . . . . . . . . 1 . . . . . . . . . . . . . . . . . . Meltdown 1 | . . . . . . . . . . . . . . . . . . . . . . . . . . . . 1 . . . . Destroy 9 | . 1 1 . 1 . . . . . . . 1 . . . . . . . . 1 . . . . . . . . . . 4 Blast 2 | . . . . . . . . . . . . . . . . . . . . . . . . . 2 . . . . . . . Corrupt 2 | . . . . . . . . . . . . . . . . 1 . . . . 1 . . . . . . . . . . . Smash 10 | . . . . . . . . . . . 5 3 . . . . . . . . 2 . . . . . . . . . . . Sever 2 | . . . . . . . . . . . . . . . . . . . . 1 1 . . . . . . . . . . . Melee Attacks 124 | . . . . . 3 . . 7 1 . 38 26 1 . . . 1 . . 5 42 . . . . . . . . . . . Impact 94 | . . . . . 3 . . 7 1 . 38 7 . . . . . . . . 38 . . . . . . . . . . . Slashing 30 | . . . . . . . . . . . . 19 1 . . . 1 . . 5 4 . . . . . . . . . . . Piercing . | . . . . . . . . . . . . . . . . . . . . . . . . . . . . . . . . . Sneak Attacks 6 | . . . . . 1 . . . . . 3 1 . . . . . . . . 1 . . . . . . . . . . . Combat Hostiles 1 | . . . . . . . . . . . 1 . . . . . . . . . . . . . . . . . . . . . Follow-up Attacks 4 | . . . . . . . . . . . . 2 . . . . . . . . 2 . . . . . . . . . . . Damage Inflicted 55417 | . 754 1772 1917 1173 2450 945 . . 385 697 1314 1920 379 818 1470 5169 1725 1124 . 1486 1741 . 336 . 816 875 1256 2609 863 3590 3218 14615 Guns 6959 | . 596 1358 1100 404 533 779 . . 385 187 207 43 . . . 42 . . . . 143 . . . . . . 1012 170 . . . Cannons 35409 | . . . . 95 1179 93 . . . 164 239 396 328 818 1170 4318 791 98 . 167 298 . 230 . 677 875 125 1425 693 3590 3025 14615 Explosions 8179 | . 153 398 783 674 641 73 . . . 346 . 607 . . . 691 934 1026 . 1095 . . . . . . 565 . . . 193 . Melee 3320 | . . . . . 94 . . . . . 868 783 51 . . . . . . 224 1300 . . . . . . . . . . . Ramming 1550 | . 5 16 34 . 3 . . . . . . 91 . . 300 118 . . . . . . 106 . 139 . 566 172 . . . . Kinetic 9140 | . 473 866 . 383 318 675 . . 236 . . 170 . . . 2256 . . . 167 96 . 92 . 677 875 125 945 30 105 . 651 Thermal 30737 | . 153 492 784 790 1372 197 . . 149 351 446 269 328 818 1170 1724 567 98 . . 298 . 138 . . . 309 480 833 3485 3025 12461 Explosive 5782 | . . 398 183 . 326 73 . . . 346 . 607 . . . 601 934 1026 . 1095 . . . . . . . . . . 193 . Electromagnetic 3876 | . 123 . 916 . 337 . . . . . . . . . . 470 224 . . . 47 . . . . . 256 . . . . 1503 Impact 2388 | . . . . . 94 . . . . . 868 229 . . . . . . . . 1197 . . . . . . . . . . . Slashing 932 | . . . . . . . . . . . . 554 51 . . . . . . 224 103 . . . . . . . . . . . Piercing . | . . . . . . . . . . . . . . . . . . . . . . . . . . . . . . . . . Entropic 1012 | . . . . . . . . . . . . . . . . . . . . . . . . . . . . 1012 . . . . Highest Corruption 32 | . 2 2 2 2 1 . . 3 . 1 2 2 2 2 11 6 1 . . 1 15 15 15 16 1 . 2 32 . . . 5 Average Corruption 4 | . 1 1 2 2 1 . . 3 . 1 1 2 2 1 4 3 1 . . 1 8 15 15 15 1 . 2 17 . . . 2 Corruption Purged 17 | . . . . . 1 . . . . . . . . 2 . 6 1 . . . . . . . . . . 2 . . . 5 Corruption Blocked 44 | . . . . . . . . . . . . . . . . . . . . . . . . . . . . . 44 . . . Effects 212 | . 4 8 21 17 3 . . 1 . . 4 17 9 . 5 29 1 . . 1 18 18 21 1 1 . 1 23 . . . 9 Message Errors 52 | . 2 2 5 3 . . . . . . 2 3 3 . 3 9 . . . . 3 4 4 1 . . . 6 . . . 2 Matter Fused 59 | . 1 1 6 8 1 . . 1 . . 1 5 1 . . 7 1 . . . 3 6 8 . . . . 6 . . . 3 Heat Flow Errors 26 | . . 1 3 2 2 . . . . . 1 3 3 . 1 2 . . . . 3 . 3 . . . . 2 . . . . Energy Discharges 28 | . . 2 1 1 . . . . . . . 1 1 . . 6 . . . 1 5 3 3 . . . . 2 . . . 2 Parts Rejected 3 | . . . . . . . . . . . . . . . 1 . . . . . 1 . . . . . . 1 . . . . Data Loss (minor) 17 | . 1 . 1 2 . . . . . . . 2 1 . . . . . . . 1 3 2 . 1 . . 1 . . . 2 Data Loss (major) 11 | . . . 3 . . . . . . . . 1 . . . 2 . . . . 1 2 1 . . . 1 . . . . . Misfires 7 | . . 1 1 . . . . . . . . 2 . . . 2 . . . . 1 . . . . . . . . . . . Alerts 4 | . . . 1 1 . . . . . . . . . . . 1 . . . . . . . . . . . 1 . . . . Misdirections 2 | . . . . . . . . . . . . . . . . . . . . . . . . . . . . 2 . . . . Weapon Failures 3 | . . 1 . . . . . . . . . . . . . . . . . . . . . . . . . 2 . . . . Overload Shots 3 | . . . . . . . . . . . . . 1 . . . 1 . . . . . . . . . . . . . . 1 Overflow Damage 4074 | . . . . 108 153 13 . . . 18 344 154 . 139 8 663 27 . . 51 263 . 93 . 125 147 230 135 . 445 132 826 Projectiles 2786 | . . . . 5 23 13 . . . 18 33 . . 139 . 625 27 . . . 23 . 56 . 115 147 55 104 . 445 132 826 Explosions 336 | . . . . 103 76 . . . . . . . . . . 38 . . . 7 . . . . . . 112 . . . . . Melee 952 | . . . . . 54 . . . . . 311 154 . . 8 . . . . 44 240 . 37 . 10 . 63 31 . . . . Knockbacks 40 | . . . . . . . . . . . 5 3 . . 1 2 . . . 1 7 . . . 8 3 8 1 1 . . . Impact 23 | . . . . . . . . . . . 5 2 . . 1 . . . . . 7 . . . 1 . 7 . . . . . Kinetic 16 | . . . . . . . . . . . . 1 . . . 2 . . . 1 . . . . 6 3 1 1 1 . . . Secondary 1 | . . . . . . . . . . . . . . . . . . . . . . . . . 1 . . . . . . . Self-Inflicted Damage 1323 | . 27 . 155 74 328 32 . . . 32 . . . . . 154 91 39 . 114 . . . . . . 80 . . . 197 . Shots 39 | . 1 . 6 2 5 1 . . . 1 . . . . . 3 6 4 . 6 . . . . . . 2 . . . 2 . Rammed 55 | . 2 4 3 . . . . . . . . . . . 22 4 . . . . . . 3 . . . 11 6 . . . . Targets Rammed 75 | . 2 4 4 . 1 . . . . . . 7 . . 23 8 . . . . . . 5 . 2 . 13 6 . . . . Kicked 13 | . . . . . . . . . . . . 7 . . . 3 . . . . . . . . 2 . 1 . . . . . Crushed 7 | . . . 1 . 1 . . . . . . . . . 1 1 . . . . . . 2 . . . 1 . . . . . Highest Temperature 410 | . 102 389 382 253 193 241 108 . 325 261 262 333 359 328 326 410 270 244 . 312 405 264 350 339 288 352 72 279 78 329 274 250 Average Temperature 104 | . 44 111 74 35 62 55 49 . 96 104 90 140 131 121 115 117 93 130 . 135 155 109 141 152 135 108 28 99 41 101 95 66 Received Heat Transfer 4425 | . 135 252 276 . 408 171 . . 187 45 90 553 36 9 388 508 192 27 . 45 45 . 9 . 60 15 105 343 222 180 45 79 Effects 23 | . . 2 . . . . . . . . . 1 2 . . 2 . . . 2 3 . 7 . 2 1 . 1 . . . . Shutdowns 3 | . . . . . . . . . . . . . 1 . . . . . . . 2 . . . . . . . . . . . Energy Bleed 7 | . . . . . . . . . . . . 1 1 . . . . . . 2 . . 1 . . 1 . 1 . . . . Interference 10 | . . . . . . . . . . . . . . . . 2 . . . . 1 . 5 . 2 . . . . . . . Matter Decay 2 | . . 2 . . . . . . . . . . . . . . . . . . . . . . . . . . . . . . Damage (minor) 1 | . . . . . . . . . . . . . . . . . . . . . . . 1 . . . . . . . . . Siege Activations 10 | . . . . . . . . . . . . . . . 1 6 . . . . . . . . . . . . . 1 . 2 Total Turns 129 | . . . . . . . . . . . . . . . 3 52 . . . . . . . . . . . . . 14 . 60 Longest Duration 31 | . . . . . . . . . . . . . . . 3 16 . . . . . . . . . . . . . 14 . 31 Robots Corrupted 5 | . . . . . . . . . . . . . . . . 1 1 . . . . . . . . . . . . . . 3 Combat Hostiles 5 | . . . . . . . . . . . . . . . . 1 1 . . . . . . . . . . . . . . 3 Parts Fried 63 | . . . 3 . 3 . . . . . 9 2 . . . 2 2 . . . 6 . . . 2 . 1 . . . . 33 Impact Corruptions 45 | . . . . . 3 . . . . . 11 4 . . 1 . . . . . 17 . 2 . 1 . 4 2 . . . . Robots Melted 3 | . . . . . . . . . . . . . . . . . . . . . . . . . . . . 1 . . . 2 Combat Hostiles 3 | . . . . . . . . . . . . . . . . . . . . . . . . . . . . 1 . . . 2 Parts Melted 50 | . . 5 3 1 3 . . . 1 1 . 2 2 . 1 6 1 . . . 1 . . . . 2 . 3 . . 6 12 Heat Transferred 21213 | . 250 1443 1143 960 1347 400 . . 125 629 459 448 827 370 830 1036 630 74 . . 259 . . . . . 300 518 222 383 2200 6360 Parts Sabotaged . | . . . . . . . . . . . . . . . . . . . . . . . . . . . . . . . . . Parts Stolen . | . . . . . . . . . . . . . . . . . . . . . . . . . . . . . . . . . Parts Stripped . | . . . . . . . . . . . . . . . . . . . . . . . . . . . . . . . . . Power Chain Reactions 16 | . 2 . 9 2 . . . . . . . . . . . . . . . . . . . . . . 3 . . . . . Alert | -11 -10 -9 -9 -9 -7 -7 -7 -7 -7 -6 -6 -6 -6 -6 -6 -5 -5 -5 -5 -4 -4 -4 -4 -4 -3 -3 -3 -3 -2 -2 -1 -1 ------- Run | Yrd Mat Mat Sto Rec Fac Low Low Zio Dee Pro Fac Ext Cet Arc Hub Fac Upp Upp Zhi Pro Fac Upp Upp War Pro Res Qua Sec Res Tes Acc Com Peak Influence 1640 | . 222 546 1003 473 650 . . . . . 171 287 357 295 689 684 . . . . 211 . . . . 212 457 347 149 326 1319 1640 Initial 742 | . . 17 230 349 304 . . . . . 53 1 136 63 . 274 . . . . . . . . . 155 74 119 141 83 171 742 Average 277 | . 87 235 758 247 382 . . . . . 43 160 224 96 383 456 . . . . 87 . . . . 100 179 222 60 141 884 1273 Maximum Alert Level 5 | . 1 2 3 2 2 . . . . . . 1 1 1 2 2 . . . . 1 . . . . 1 2 1 . 1 4 5 Low Security (%) 56 | 100 99 30 . 30 . . . . . . 100 51 41 76 18 . . . . . 98 . . . . 72 68 36 100 67 7 88 Level 1 23 | . . 53 13 53 62 . . . . . . 48 58 23 23 30 . . . . 1 . . . . 27 23 63 . 32 7 . Level 2 12 | . . 15 12 15 37 . . . . . . . . . 57 69 . . . . . . . . . . 7 . . . 5 . Level 3 5 | . . . 73 . . . . . . . . . . . . . . . . . . . . . . . . . . . 42 2 Level 4 2 | . . . . . . . . . . . . . . . . . . . . . . . . . . . . . . . 37 8 Level 5 . | . . . . . . . . . . . . . . . . . . . . . . . . . . . . . . . . . High Security . | . . . . . . . . . . . . . . . . . . . . . . . . . . . . . . . . . Max Security . | . . . . . . . . . . . . . . . . . . . . . . . . . . . . . . . . . Squads Dispatched 71 | . 4 . 8 . 8 . . . . . 7 . . . 6 8 . . . . 5 . . . 1 5 3 3 1 6 2 4 Investigation 17 | . 3 . 1 . 1 . . . . . 4 . . . 2 3 . . . . . . . . . 2 . . . . . 1 Extermination 19 | . . . . . 3 . . . . . 2 . . . 1 3 . . . . 2 . . . . . 1 2 . 2 1 2 Reinforcement 20 | . 1 . 2 . 2 . . . . . 1 . . . 2 1 . . . . 1 . . . . 3 2 1 1 3 . . Assault 7 | . . . 2 . . . . . . . . . . . 1 1 . . . . . . . . 1 . . . . . 1 1 Garrison 8 | . . . 3 . 2 . . . . . . . . . . . . . . . 2 . . . . . . . . 1 . . Intercept . | . . . . . . . . . . . . . . . . . . . . . . . . . . . . . . . . . Searches Triggered . | . . . . . . . . . . . . . . . . . . . . . . . . . . . . . . . . . Construction Impeded 2 | . . . 1 . 1 . . . . . . . . . . . . . . . . . . . . . . . . . . . Haulers Reinforced 2 | . . . . . . . . . . . . . . . . . . . . . . . . . . 1 . . . 1 . . Active Scanning Responses . | . . . . . . . . . . . . . . . . . . . . . . . . . . . . . . . . . Cargo Convoy Interrupts . | . . . . . . . . . . . . . . . . . . . . . . . . . . . . . . . . . Stealth | -11 -10 -9 -9 -9 -7 -7 -7 -7 -7 -6 -6 -6 -6 -6 -6 -5 -5 -5 -5 -4 -4 -4 -4 -4 -3 -3 -3 -3 -2 -2 -1 -1 --------- Run | Yrd Mat Mat Sto Rec Fac Low Low Zio Dee Pro Fac Ext Cet Arc Hub Fac Upp Upp Zhi Pro Fac Upp Upp War Pro Res Qua Sec Res Tes Acc Com Distress Signals 23 | . . 2 . . 2 . . . . . . . 2 . 1 1 . . . . 1 . . . . 7 2 1 2 2 . . Communications Jammed 56 | . . . . . . . . . . . . . . . . 22 . . . . . . . . . . 7 . . 14 . 13 Distress Signals 50 | . . . . . . . . . . . . . . . . 22 . . . . . . . . . . 1 . . 14 . 13 Times Spotted 551 | . 17 38 39 3 27 13 . . 13 11 9 26 10 6 37 49 11 12 . 9 10 . 6 32 18 18 28 34 15 18 13 29 Peak Tracking Total 15 | . 3 6 6 2 5 4 . . 3 3 3 4 5 2 15 6 5 5 . 3 3 . 5 15 10 5 8 13 6 3 5 6 Tactical Retreats 30 | . . . 1 . 1 1 . . . 1 . . . . . 2 . . . . . . 1 1 5 1 7 6 2 1 . . Traps | -11 -10 -9 -9 -9 -7 -7 -7 -7 -7 -6 -6 -6 -6 -6 -6 -5 -5 -5 -5 -4 -4 -4 -4 -4 -3 -3 -3 -3 -2 -2 -1 -1 ------- Run | Yrd Mat Mat Sto Rec Fac Low Low Zio Dee Pro Fac Ext Cet Arc Hub Fac Upp Upp Zhi Pro Fac Upp Upp War Pro Res Qua Sec Res Tes Acc Com Traps Triggered 30 | . 5 4 . . 2 . . . . . . . . . 2 9 . . . . 2 . . 2 . . 2 . . 1 . 1 Indirectly . | . . . . . . . . . . . . . . . . . . . . . . . . . . . . . . . . . Trap Hack Attempts . | . . . . . . . . . . . . . . . . . . . . . . . . . . . . . . . . . Triggered . | . . . . . . . . . . . . . . . . . . . . . . . . . . . . . . . . . Disarmed . | . . . . . . . . . . . . . . . . . . . . . . . . . . . . . . . . . Reprogrammed . | . . . . . . . . . . . . . . . . . . . . . . . . . . . . . . . . . Reused . | . . . . . . . . . . . . . . . . . . . . . . . . . . . . . . . . . Traps Extracted . | . . . . . . . . . . . . . . . . . . . . . . . . . . . . . . . . . Installed . | . . . . . . . . . . . . . . . . . . . . . . . . . . . . . . . . . Triggered 9 | . . . . . . . . . . . . . . . . . . . . . . . . 9 . . . . . . . . Machines | -11 -10 -9 -9 -9 -7 -7 -7 -7 -7 -6 -6 -6 -6 -6 -6 -5 -5 -5 -5 -4 -4 -4 -4 -4 -3 -3 -3 -3 -2 -2 -1 -1 ---------- Run | Yrd Mat Mat Sto Rec Fac Low Low Zio Dee Pro Fac Ext Cet Arc Hub Fac Upp Upp Zhi Pro Fac Upp Upp War Pro Res Qua Sec Res Tes Acc Com Machines Disabled 57 | . 2 2 4 . 4 . 1 . 3 . 1 3 1 2 2 2 1 . . . 1 1 . 1 . . 6 4 1 4 8 3 Max in Single Turn 2 | . 2 1 1 . 2 . 1 . . . 1 1 1 . 1 1 1 . . . 1 1 . 1 . . 2 1 1 1 2 1 Garrison Access 3 | . . . . . . . . . . . . . . . 1 . . . . . . . . . . . . . 1 . 1 . Network Hub 3 | . . . . . . . . . . . . . . . 3 . . . . . . . . . . . . . . . . . Machines Repaired . | . . . . . . . . . . . . . . . . . . . . . . . . . . . . . . . . . Machines Dismantled . | . . . . . . . . . . . . . . . . . . . . . . . . . . . . . . . . . Machines Sabotaged 2 | . . . . . . . . . . . . . . . 2 . . . . . . . . . . . . . . . . . Overloaded Fab Kills . | . . . . . . . . . . . . . . . . . . . . . . . . . . . . . . . . . Hacking | -11 -10 -9 -9 -9 -7 -7 -7 -7 -7 -6 -6 -6 -6 -6 -6 -5 -5 -5 -5 -4 -4 -4 -4 -4 -3 -3 -3 -3 -2 -2 -1 -1 --------- Run | Yrd Mat Mat Sto Rec Fac Low Low Zio Dee Pro Fac Ext Cet Arc Hub Fac Upp Upp Zhi Pro Fac Upp Upp War Pro Res Qua Sec Res Tes Acc Com Machines Accessed 102 | . 7 4 6 10 8 2 . . . . 8 . 2 . 5 10 . 1 6 . 2 3 . 3 . 3 8 4 1 1 2 6 Terminals 60 | . 6 4 6 5 6 1 . . . . 2 . 2 . 4 5 . . . . 1 . . . . . 7 3 . 1 2 5 Fabricators 4 | . . . . . 1 . . . . . . . . . . 2 . . . . . . . . . 1 . . . . . . Repair Stations 1 | . . . . . . . . . . . 1 . . . . . . . . . . . . . . . . . . . . . Recycling Units 14 | . 1 . . 5 . . . . . . 3 . . . . 2 . . . . 1 . . . . 1 . . . . . 1 Scanalyzers 4 | . . . . . . . . . . . 2 . . . . . . . . . . . . . . . 1 1 . . . . Garrison Access 5 | . . . . . 1 . . . . . . . . . 1 1 . . . . . . . . . 1 . . 1 . . . Total Hacks 336 | . 19 10 15 27 13 2 . . . . 20 . 4 . 13 44 . 1 28 . 15 7 . 4 . 19 43 20 2 11 3 16 Successful 169 | . 6 5 7 17 4 2 . . . . 11 . 2 . 4 15 . 1 28 . 6 7 . 4 . 6 21 10 . 7 1 5 Failed 166 | . 13 4 8 10 9 . . . . . 9 . 2 . 9 29 . . . . 9 . . . . 13 22 10 2 4 2 11 Catastrophic 38 | . 2 1 2 3 5 . . . . . 1 . . . 3 4 . . . . 2 . . . . 3 4 3 . . 1 4 Database Lockouts 1 | . . 1 . . . . . . . . . . . . . . . . . . . . . . . . . . . . . . Manual 152 | . 15 5 3 12 3 . . . . . 3 . 1 . 8 25 . . . . 12 . . . . 7 27 10 . 6 . 15 Terminals 204 | . 18 10 15 16 10 1 . . . . 5 . 4 . 12 22 . . . . 5 . . . . 4 40 17 . 11 3 11 Fabricators 12 | . . . . . 1 . . . . . . . . . . 7 . . . . . . . . . 4 . . . . . . Repair Stations 2 | . . . . . . . . . . . 2 . . . . . . . . . . . . . . . . . . . . . Recycling Units 50 | . 1 . . 11 . . . . . . 4 . . . . 12 . . . . 10 . . . . 7 . . . . . 5 Scanalyzers 15 | . . . . . . . . . . . 9 . . . . . . . . . . . . . . . 3 3 . . . . Garrison Access 12 | . . . . . 2 . . . . . . . . . 1 3 . . . . . . . . . 4 . . 2 . . . Terminal Hacks 105 | . 5 5 7 9 2 2 . . . . 2 . 2 . 1 3 . 1 28 . 2 7 . 4 . . 14 6 . 3 1 1 Record 30 | . . . . . . 1 . . . . . . 2 . . . . 1 16 . . 6 . 2 . . 2 . . . . . Part Schematic 9 | . 1 1 . 1 . . . . . . 1 . . . . . . . 4 . . . . . . . 1 . . . . . Robot Schematic 1 | . . . . 1 . . . . . . . . . . . . . . . . . . . . . . . . . . . . Robot Analysis 10 | . 3 . 1 . 1 . . . . . . . . . 1 . . . 4 . . . . . . . . . . . . . Prototype ID Bank 8 | . 1 . . 2 . . . . . . . . . . . 1 . . 4 . . . . . . . . . . . . . Open Door 9 | . . . 3 . . 1 . . . . . . . . . . . . . . . 1 . 2 . . . . . . 1 1 Level Access Points 1 | . . . . . . . . . . . . . . . . . . . . . . . . . . . . 1 . . . . Branch Access Points 6 | . . 1 1 . 1 . . . . . 1 . . . . 1 . . . . 1 . . . . . . . . . . . Machine Index 1 | . . . . . . . . . . . . . . . . . . . . . . . . . . . . 1 . . . . Terminal Index 1 | . . . . . . . . . . . . . . . . . . . . . 1 . . . . . . . . . . . Alert Level 3 | . . . . 2 . . . . . . . . . . . . . . . . . . . . . . . 1 . . . . Unreport Threat 9 | . . . . 2 . . . . . . . . . . . . . . . . . . . . . . 4 1 . 2 . . Locate Traps 5 | . . 2 1 . . . . . . . . . . . . . . . . . . . . . . . 1 1 . . . . Surveillance Status 1 | . . . . . . . . . . . . . . . . . . . . . . . . . . . 1 . . . . . Patrol Status 1 | . . . . . . . . . . . . . . . . . . . . . . . . . . . 1 . . . . . Zone Layout 10 | . . 1 1 1 . . . . . . . . . . . 1 . . . . . . . . . . 4 1 . 1 . . Fabricator Hacks 6 | . . . . . 1 . . . . . . . . . . 3 . . . . . . . . . 2 . . . . . . Load Schematic 3 | . . . . . . . . . . . . . . . . 2 . . . . . . . . . 1 . . . . . . Build 3 | . . . . . 1 . . . . . . . . . . 1 . . . . . . . . . 1 . . . . . . Repair Station Hacks 1 | . . . . . . . . . . . 1 . . . . . . . . . . . . . . . . . . . . . Scan Component 1 | . . . . . . . . . . . 1 . . . . . . . . . . . . . . . . . . . . . Recycling Unit Hacks 9 | . . . . 4 . . . . . . 1 . . . . 2 . . . . 1 . . . . 1 . . . . . . Retrieve Components 9 | . . . . 4 . . . . . . 1 . . . . 2 . . . . 1 . . . . 1 . . . . . . Scanalyzer 9 | . . . . . . . . . . . 6 . . . . . . . . . . . . . . . 1 2 . . . . Insert Component 6 | . . . . . . . . . . . 3 . . . . . . . . . . . . . . . 1 2 . . . . Analyze 3 | . . . . . . . . . . . 3 . . . . . . . . . . . . . . . . . . . . . Garrison Access Hacks 1 | . . . . . . . . . . . . . . . 1 . . . . . . . . . . . . . . . . . Seal Access 1 | . . . . . . . . . . . . . . . 1 . . . . . . . . . . . . . . . . . Unauthorized Hacks 36 | . 1 . . 4 1 . . . . . 1 . . . 2 7 . . . . 3 . . . . 2 6 2 . 3 . 4 Terminals 24 | . . . . . 1 . . . . . 1 . . . 2 5 . . . . . . . . . 1 6 2 . 3 . 3 Track 9 | . . . . . . . . . . . 1 . . . . 1 . . . . . . . . . . 3 2 . 2 . . Assimilate 1 | . . . . . . . . . . . . . . . . . . . . . . . . . . . 1 . . . . . Botnet 12 | . . . . . 1 . . . . . . . . . . 4 . . . . . . . . . 1 2 . . 1 . 3 Sabotage 2 | . . . . . . . . . . . . . . . 2 . . . . . . . . . . . . . . . . . Fabricators . | . . . . . . . . . . . . . . . . . . . . . . . . . . . . . . . . . Repair Stations . | . . . . . . . . . . . . . . . . . . . . . . . . . . . . . . . . . Recycling Units 12 | . 1 . . 4 . . . . . . . . . . . 2 . . . . 3 . . . . 1 . . . . . 1 Monitor 1 | . . . . . . . . . . . . . . . . . . . . . 1 . . . . . . . . . . . Reject 3 | . . . . . . . . . . . . . . . . 1 . . . . 1 . . . . . . . . . . 1 Mask 3 | . . . . . . . . . . . . . . . . 1 . . . . 1 . . . . 1 . . . . . . Tunnel 5 | . 1 . . 4 . . . . . . . . . . . . . . . . . . . . . . . . . . . . Scanalyzers . | . . . . . . . . . . . . . . . . . . . . . . . . . . . . . . . . . Garrison Access . | . . . . . . . . . . . . . . . . . . . . . . . . . . . . . . . . . Data Cores Recovered 7 | . . 1 1 . . . . . . . . . . . . . . . . . . . . . . . . 1 . 3 . 1 Used 2 | . . . . . . . . . . . . . . . . . . . . . . . . . . . . 1 . . . 1 Hacking Detections 67 | . 6 4 4 5 7 1 . . . . 7 . 2 . 3 7 . . . . 2 . . . . 3 6 2 1 . 2 5 Full Trace Events 11 | . . . 1 2 . . . . . . 4 . . . . 3 . . . . . . . . . 1 . . . . . . Feedback Events . | . . . . . . . . . . . . . . . . . . . . . . . . . . . . . . . . . Feedback Blocked . | . . . . . . . . . . . . . . . . . . . . . . . . . . . . . . . . . Robot Schematics Acquired 6 | . . . . 1 . . . 3 . . . . . . . . . . . . . . . . . . 2 . . . . . Robots Built . | . . . . . . . . . . . . . . . . . . . . . . . . . . . . . . . . . Authchips . | . . . . . . . . . . . . . . . . . . . . . . . . . . . . . . . . . Time . | . . . . . . . . . . . . . . . . . . . . . . . . . . . . . . . . . Total Robot Build Rating . | . . . . . . . . . . . . . . . . . . . . . . . . . . . . . . . . . Part Schematics Acquired 27 | . 1 1 . 1 . . . 14 . . 2 . . . . . . . 4 . . . . . . . 3 . . 1 . . Parts Built 5 | . . . . . 2 . . . . . . . . . . 2 . . . . . . . . . 1 . . . . . . Authchips . | . . . . . . . . . . . . . . . . . . . . . . . . . . . . . . . . . Time 140 | . . . . . 84 . . . . . . . . . . 31 . . . . . . . . . 25 . . . . . . Total Part Build Rating 19 | . . . . . 8 . . . . . . . . . . 10 . . . . . . . . . 1 . . . . . . Parts Repaired . | . . . . . . . . . . . . . . . . . . . . . . . . . . . . . . . . . Time . | . . . . . . . . . . . . . . . . . . . . . . . . . . . . . . . . . Parts Recycled . | . . . . . . . . . . . . . . . . . . . . . . . . . . . . . . . . . Recycled Matter . | . . . . . . . . . . . . . . . . . . . . . . . . . . . . . . . . . Retrieved Matter . | . . . . . . . . . . . . . . . . . . . . . . . . . . . . . . . . . Retrieved Components 32 | . . . . 22 . . . . . . 3 . . . . 2 . . . . 2 . . . . 3 . . . . . . Parts Scanalyzed 1 | . . . . . . . . . . . 1 . . . . . . . . . . . . . . . . . . . . . Part Schematics Acquired 1 | . . . . . . . . . . . 1 . . . . . . . . . . . . . . . . . . . . . Parts Damaged 1 | . . . . . . . . . . . 1 . . . . . . . . . . . . . . . . . . . . . Bothacking | -11 -10 -9 -9 -9 -7 -7 -7 -7 -7 -6 -6 -6 -6 -6 -6 -5 -5 -5 -5 -4 -4 -4 -4 -4 -3 -3 -3 -3 -2 -2 -1 -1 ------------ Run | Yrd Mat Mat Sto Rec Fac Low Low Zio Dee Pro Fac Ext Cet Arc Hub Fac Upp Upp Zhi Pro Fac Upp Upp War Pro Res Qua Sec Res Tes Acc Com Used RIF Installer . | . . . . . . . . . . . . . . . . . . . . . . . . . . . . . . . . . Robots Hacked . | . . . . . . . . . . . . . . . . . . . . . . . . . . . . . . . . . Non-combat . | . . . . . . . . . . . . . . . . . . . . . . . . . . . . . . . . . Combat . | . . . . . . . . . . . . . . . . . . . . . . . . . . . . . . . . . Robot Hacks Applied . | . . . . . . . . . . . . . . . . . . . . . . . . . . . . . . . . . Relay Couplers Released 3 | . . . . . . . . . . . . . . . . . . . . . . . . . . . . . 2 . 1 . Machine Destruction 3 | . . . . . . . . . . . . . . . . . . . . . . . . . . . . . 2 . 1 . Fabnet Peak Effective % . | . . . . . . . . . . . . . . . . . . . . . . . . . . . . . . . . . Robots Rewired 35 | . . . . 14 . . . . . . . 16 . . . . . . . . . . . 5 . . . . . . . . Allies Hacked . | . . . . . . . . . . . . . . . . . . . . . . . . . . . . . . . . . Hacks Repelled . | . . . . . . . . . . . . . . . . . . . . . . . . . . . . . . . . . Allies | -11 -10 -9 -9 -9 -7 -7 -7 -7 -7 -6 -6 -6 -6 -6 -6 -5 -5 -5 -5 -4 -4 -4 -4 -4 -3 -3 -3 -3 -2 -2 -1 -1 -------- Run | Yrd Mat Mat Sto Rec Fac Low Low Zio Dee Pro Fac Ext Cet Arc Hub Fac Upp Upp Zhi Pro Fac Upp Upp War Pro Res Qua Sec Res Tes Acc Com Total Allies 77 | . . . 12 14 . . . 7 . . . 23 5 . . . . . . . . 2 . 5 . . 2 1 . . 3 3 Largest Group 18 | . . . 10 18 . . . 7 7 . . 14 14 11 10 . . . . . . 2 . 5 3 . 2 1 . . 3 3 Highest-Rated Group 833 | . . . 88 175 . . . 215 215 . . 549 833 760 617 . . . . . . 75 . 316 195 . 90 110 . . 379 376 Highest-Rated Ally 159 | . . . 31 21 . . . 39 39 . . 159 159 143 96 . . . . . . 46 . 65 65 . 45 110 . . 135 132 Total Orders 89 | . . . . 1 . . . . . . 5 13 1 . 4 6 . . . . 1 . . 3 . 14 3 12 19 4 . 3 STAY 7 | . . . . 1 . . . . . . . 2 . . 2 . . . . . . . . . . . . 2 . . . . FOLLOW 3 | . . . . . . . . . . . . 3 . . . . . . . . . . . . . . . . . . . . EXPLORE 22 | . . . . . . . . . . . . . . . 2 . . . . . . . . . . . . 4 16 . . . RETURN 57 | . . . . . . . . . . . 5 8 1 . . 6 . . . . 1 . . 3 . 14 3 6 3 4 . 3 Ally Attacks 465 | . . . 54 21 . . . . 91 . . 147 72 15 46 . . . . . . . . 9 . . . 4 . . 3 3 Total Damage 11313 | . . . 660 209 . . . . 2983 . . 2853 1997 392 1180 . . . . . . . . 687 . . . 217 . . 76 59 Kills 80 | . . . 9 4 . . . . 14 . . 20 8 4 16 . . . . . . . . 4 . . . . . . 1 . Allies Corrupted 4 | . . . . . . . . . . . . . . . 3 . . . . . . . . . . . . . 1 . . . Allies Melted 3 | . . . . . . . . . 1 . . . . . . . . . . . . . . 1 . . . . 1 . . . Field Lobotomies 1 | . . . . . . . . . . . . . . . . . . . . . . . . . . . . 1 . . . . Intel | -11 -10 -9 -9 -9 -7 -7 -7 -7 -7 -6 -6 -6 -6 -6 -6 -5 -5 -5 -5 -4 -4 -4 -4 -4 -3 -3 -3 -3 -2 -2 -1 -1 ------- Run | Yrd Mat Mat Sto Rec Fac Low Low Zio Dee Pro Fac Ext Cet Arc Hub Fac Upp Upp Zhi Pro Fac Upp Upp War Pro Res Qua Sec Res Tes Acc Com Robot Analysis Total 10 | . 3 . 1 . 1 . . . . . . . . . 1 . . . 4 . . . . . . . . . . . . . Derelict Logs Recovered 12 | . . . . . . 1 2 1 . 2 . . . . . . 1 1 . 1 . 1 2 . . . . . . . . . Drone Launches 85 | . . . . . . . . . . . 5 8 1 . 2 6 . . . . 1 . . 3 . 14 3 16 19 4 . 3 Drone Recoveries 70 | . . . . . . . . . . . 5 8 1 . . 6 . . . . 1 . . 3 . 14 3 13 9 4 . 3 Exploration | -11 -10 -9 -9 -9 -7 -7 -7 -7 -7 -6 -6 -6 -6 -6 -6 -5 -5 -5 -5 -4 -4 -4 -4 -4 -3 -3 -3 -3 -2 -2 -1 -1 ------------- Run | Yrd Mat Mat Sto Rec Fac Low Low Zio Dee Pro Fac Ext Cet Arc Hub Fac Upp Upp Zhi Pro Fac Upp Upp War Pro Res Qua Sec Res Tes Acc Com Turns Passed 45927 | 76 901 1089 1280 1495 1420 4194 2497 2134 4048 796 1594 1448 465 1653 584 2244 1901 2114 453 1106 532 453 505 761 343 1005 535 705 1539 1007 412 4638 Spaces Moved 27499 | 52 512 536 586 530 834 980 975 1440 2117 707 1294 719 314 196 387 1184 1287 1232 189 906 477 784 752 1034 445 979 803 533 1220 713 415 2367 Core 2 | 2 . . . . . . . . . . . . . . . . . . . . . . . . . . . . . . . . Treads 11708 | . 218 536 586 215 213 787 . 1412 1076 . . . . 122 387 1103 . 230 . . . 618 752 814 . . 607 477 159 232 . 1164 Legs 4927 | 50 294 . . . . . . . . . 1 638 314 74 . 37 13 . . . . . . 220 445 979 196 . 242 431 404 589 Wheels 1239 | . . . . . . 193 975 28 . . . . . . . . . . . . . . . . . . . . 43 . . . Hover 5849 | . . . . 315 621 . . . 1041 707 1293 81 . . . . . . 55 906 477 166 . . . . . . . 20 . 167 Flight 3679 | . . . . . . . . . . . . . . . . 44 1274 1002 134 . . . . . . . . . 771 7 . 447 Fastest Speed 35 | 50 120 160 160 141 72 150 150 126 96 96 60 98 87 87 116 116 50 85 104 104 45 45 50 50 50 50 35 35 62 75 75 54 Average Speed 110 | 117 137 160 178 187 130 218 150 127 116 96 78 113 103 118 120 145 114 135 123 104 70 48 50 50 50 55 43 94 110 100 75 111 Slowest Speed 410 | 120 190 240 240 340 251 224 150 195 195 96 126 173 107 177 138 204 159 145 151 104 116 50 50 86 50 135 135 218 176 410 75 246 Overloaded Moves 212 | . . . . . . . . . . . . . . . . . 68 29 . . 76 . . . . . . . . . . 39 Propulsion Burnouts . | . . . . . . . . . . . . . . . . . . . . . . . . . . . . . . . . . Robots Hopped . | . . . . . . . . . . . . . . . . . . . . . . . . . . . . . . . . . Cave-ins Triggered 1 | . . . . . . 1 . . . . . . . . . . . . . . . . . . . . . . . . . . Teleports 1 | . . . . . . . . . . . . . . . . . . . . . . . . . . . . 1 . . . . Spacefolds 33 | . . . . . . . . . . . . . . . . . . . . . . . . . . . . 20 2 7 4 . Exploration Rate (%) 65 | 4 84 62 84 84 27 90 86 87 90 71 31 73 79 79 51 32 94 94 62 92 12 84 81 92 67 18 95 47 51 89 18 56 Regions Visited 32 Branch Regions 23 Pre-discovered Areas 11 | . 1 . . 4 . . 1 1 . . . . . . . . . . 3 1 . . . . . . . . . . . . Known Exits Taken 18 | . . 1 1 . 1 . . . . 1 1 . . . 1 1 1 1 1 1 1 1 1 . . 1 . 1 1 . 1 . Unknown Exits Taken 14 | 1 1 . . 1 . 1 1 1 1 . . 1 1 1 . . . . . . . . . 1 1 . 1 . . 1 . . Scrap Searched 27 | . . . . . . 2 3 2 . 3 . . . . . . 3 3 . 1 . 4 3 . 3 . . . . . . . Spaces Dug 513 | . . . 7 . 27 18 4 3 32 . 26 . 1 . 8 23 30 29 . 18 4 6 8 . 1 10 20 9 12 31 160 26 Terrain Destroyed 1354 | . 10 36 51 13 77 32 4 3 36 41 30 39 1 1 29 103 85 150 . 143 8 7 12 . 4 13 47 11 14 39 226 89 Melee 24 | . . . . . 2 . . 3 1 . 16 . . . . . . . . . 2 . . . . . . . . . . . Projectile 545 | . . . . . 30 8 4 . 35 1 14 3 1 1 29 41 5 . . 6 6 7 12 . 4 13 20 11 14 39 152 89 AOE 785 | . 10 36 51 13 45 24 . . . 40 . 36 . . . 62 80 150 . 137 . . . . . . 27 . . . 74 . Terrain Rammed . | . . . . . . . . . . . . . . . . . . . . . . . . . . . . . . . . . Walls Destroyed . | . . . . . . . . . . . . . . . . . . . . . . . . . . . . . . . . . Machines Disabled . | . . . . . . . . . . . . . . . . . . . . . . . . . . . . . . . . . Actions | -11 -10 -9 -9 -9 -7 -7 -7 -7 -7 -6 -6 -6 -6 -6 -6 -5 -5 -5 -5 -4 -4 -4 -4 -4 -3 -3 -3 -3 -2 -2 -1 -1 --------- Run | Yrd Mat Mat Sto Rec Fac Low Low Zio Dee Pro Fac Ext Cet Arc Hub Fac Upp Upp Zhi Pro Fac Upp Upp War Pro Res Qua Sec Res Tes Acc Com Total 41685 | 64 631 694 734 1012 1054 2970 1991 1733 3638 803 1775 1283 445 1613 477 1616 1674 1656 408 1038 609 847 862 1285 552 1415 953 667 1379 968 506 4333 Wait 10767 | . 50 26 37 241 41 1907 986 224 1324 78 297 217 86 1388 23 168 319 380 200 102 34 40 84 95 88 330 81 35 13 56 15 1802 Move 27404 | 51 511 535 585 529 833 979 974 1439 2116 706 1293 718 313 195 386 1183 1286 1231 188 905 476 783 751 1033 444 978 802 496 1216 696 407 2366 Hop . | . . . . . . . . . . . . . . . . . . . . . . . . . . . . . . . . . Pick Up 538 | 7 11 27 18 13 35 8 3 20 41 3 35 19 11 7 7 43 10 9 5 2 10 6 1 27 2 18 6 13 39 49 12 21 Fast Attach 158 | 5 1 6 6 1 1 3 3 7 17 . 2 4 . 1 1 19 . . 4 . 6 . . 14 . 10 4 7 17 8 2 9 Attach 199 | 1 2 4 2 4 9 5 1 6 7 . 16 11 4 2 . 18 6 3 2 1 4 . . 5 2 10 3 27 17 18 8 1 Detach 57 | . . . . 4 1 5 . . . . 7 7 1 2 . 2 3 1 . . 2 . . 1 . 6 . 10 1 1 3 . Swap 349 | . 7 17 16 2 13 15 4 2 7 3 25 17 6 1 8 49 16 9 2 9 17 2 3 11 . 13 7 11 9 25 12 11 Drop 623 | . 7 27 18 28 16 13 4 27 61 3 35 19 13 8 5 51 7 10 7 1 11 8 1 45 1 25 7 20 40 62 12 31 Fire 939 | . 40 48 48 32 88 35 16 1 64 10 27 20 10 9 24 75 26 13 . 13 11 8 17 1 13 25 30 42 27 53 35 78 Melee 118 | . . . . . 3 . . 7 1 . 38 24 1 . . . 1 . . 5 38 . . . . . . . . . . . Ram . | . . . . . . . . . . . . . . . . . . . . . . . . . . . . . . . . . Kick 13 | . . . . . . . . . . . . 7 . . . 3 . . . . . . . . 2 . 1 . . . . . Crush 62 | . 2 4 4 . 1 . . . . . . . . . 23 5 . . . . . . 5 . . . 12 6 . . . . Escape Stasis 13 | . . . . . 13 . . . . . . . . . . . . . . . . . . . . . . . . . . . Rewire 445 | . . . . 158 . . . . . . . 220 . . . . . . . . . . . 53 . . . . . . . 14 Trap . | . . . . . . . . . . . . . . . . . . . . . . . . . . . . . . . . . Miscellaneous . | . . . . . . . . . . . . . . . . . . . . . . . . . . . . . . . . . Route ------- -11/Scrapyard -10/Materials (discovered 4 exits: *Mat x2 / [*Min x2]) -9/Materials (discovered 4 exits: [*Mat] / *Min / *Sto x2) -9/Storage (discovered 2 exits: [*Mat] / *Rec) -9/Recycling -7/Factory (discovered 2 exits: *Low x2) -7/Lower Caves -7/Lower Caves (discovered 2 exits: Fac / *Zio) -7/Zion (discovered 2 exits: [*Dee] / [*Pro]) -7/Deep Caves -6/Proximity Caves -6/Factory (discovered 8 exits: *Fac x4 / Low x2 / *Ext x2) -6/Extension (discovered 3 exits: *Fac x2 / *Cet) -6/Cetus (discovered 2 exits: *Fac / [*Arc]) -6/Archives (discovered 3 exits: *Fac / *Hub x2) -6/Hub_04(d) (discovered 2 exits: *Fac x2) -5/Factory (discovered 6 exits: *Fac x4 / *Upp x2) -5/Upper Caves -5/Upper Caves (discovered 2 exits: *Fac / *Zhi) -5/Zhirov -4/Proximity Caves -4/Factory (discovered 3 exits: *Upp x2 / Arm) -4/Upper Caves -4/Upper Caves (discovered 2 exits: *Res / *War) -4/Warlord -3/Proximity Caves -3/Research (discovered 3 exits: *Res / *Qua x2) -3/Quarantine (discovered 2 exits: *Res / *Sec) -3/Section 7 -2/Research -2/Testing -1/Access (discovered 2 exits: Sur / *Com) -1/Command (discovered 2 exits: *Sur x2) To Epsilon Eridani History --------- Turn | Location | Event 4 | -11/Scrapyard | Discovered new exit (range 16) 77 | -11/Scrapyard | Entered Materials 317 | -10/Materials | Build established: Mutant 317 | -10/Materials | Discovered new exit (range 15) 453 | -10/Materials | Discovered new exit (range 9) 689 | -10/Materials | Discovered new exit (range 7) 899 | -10/Materials | Discovered new exit (range 13) 978 | -10/Materials | Entered another Materials area 978 | -9/Materials | Evolved 2 slots: Utility x1, Weapon x1 1029 | -9/Materials | Identified exit to Mines 1029 | -9/Materials | Identified exit to Storage 1079 | -9/Materials | Central database locked down 1369 | -9/Materials | Build established: Tank 1602 | -9/Materials | Discovered new exit (range 16) 2067 | -9/Materials | Entered Storage 2190 | -9/Storage | Met a pair of Derelict thieves 2352 | -9/Storage | Garrison activated, responded to threat 2421 | -9/Storage | Core integrity fell below 50% 2676 | -9/Storage | Assisted by bots powering up and referring to "LRC-V3" 2756 | -9/Storage | Identified exit to Recycling 2775 | -9/Storage | Discovered new exit (range 16) 2969 | -9/Storage | Build established: Commander-Tank 3333 | -9/Storage | Used back door to open Recycling access 3347 | -9/Storage | Entered Recycling 3347 | -9/Recycling | Accompanied by 8 allies 3348 | -9/Recycling | Found Scrap Engine 3745 | -9/Recycling | Murdered 6 allies 3985 | -9/Recycling | Discovered new exit (range 7) 4149 | -9/Recycling | Build established: Commander-Construct 4842 | -9/Recycling | Entered Factory 4842 | -7/Factory | Evolved 4 slots: Propulsion x2, Utility x2 5029 | -7/Factory | Identified exit to Lower Caves 5159 | -7/Factory | Build established: Construct 5609 | -7/Factory | Fabricated Flak Gun? 6063 | -7/Factory | Garrison activated, responded to threat 6262 | -7/Factory | Entered Lower Caves 6638 | -7/Lower Caves | Spotted B-75 Beast 6704 | -7/Lower Caves | Crushed by falling debris 6704 | -7/Lower Caves | Core integrity fell below 50% 6955 | -7/Lower Caves | Learned Factory trap positions 7531 | -7/Lower Caves | Build established: Mutant 9195 | -7/Lower Caves | Discovered new exit (range 14) 10434 | -7/Lower Caves | Encountered a Warlord checkpoint 10456 | -7/Lower Caves | Entered another Lower Caves area 10520 | -7/Lower Caves | Build established: Construct 10669 | -7/Lower Caves | Found Alien Artifact 10669 | -7/Lower Caves | Identified Core Expander 10669 | -7/Lower Caves | Installed Core Expander, added new Utility slot 10920 | -7/Lower Caves | Discovered new exit (range 9) 10938 | -7/Lower Caves | Build established: Skirmisher 11868 | -7/Lower Caves | Learned location of Extension (-6) 12350 | -7/Lower Caves | Discovered new exit (range 10) 12549 | -7/Lower Caves | Learned 4 Factory zone layouts 12953 | -7/Lower Caves | Entered Zion 12982 | -7/Zion | Given the Hacking Drone Bay 12993 | -7/Zion | Found Prototype Device 13137 | -7/Zion | Discovered new exit (range 15) 13703 | -7/Zion | Gained Derelict followers 13791 | -7/Zion | Learned location of Data Miner (-6) 13816 | -7/Zion | Gained Derelict followers 14242 | -7/Zion | Found Prototype Processor 14242 | -7/Zion | Identified Exp. Target Analyzer 14245 | -7/Zion | Found Prototype Processor 14245 | -7/Zion | Identified Exp. Armor Integrity Analyzer 14249 | -7/Zion | Found Prototype Processor 14249 | -7/Zion | Identified Spectral Analyzer 14253 | -7/Zion | Found Prototype Processor 14253 | -7/Zion | Identified Exp. Melee Analysis Suite 14256 | -7/Zion | Found Prototype Processor 14256 | -7/Zion | Identified Exp. Core Analyzer 14354 | -7/Zion | System corruption cleaned by Quarantine Array 14473 | -7/Zion | Found Exp. Core Analyzer 14500 | -7/Zion | Build established: Mutant 15009 | -7/Zion | Build established: Derelict-Mutant 15042 | -7/Zion | Discovered new exit (range 5) 15043 | -7/Zion | Saw the warning signs outside the Deep Caves entrance 15087 | -7/Zion | Entered Deep Caves 15087 | -7/Deep Caves | Accompanied by 7 allies 15391 | -7/Deep Caves | Build established: Derelict-Tank 15455 | -7/Deep Caves | Attacked by Z-Imprinter 15472 | -7/Deep Caves | Allies destroyed Z-Imprinter 15512 | -7/Deep Caves | Found Prototype Protection 15512 | -7/Deep Caves | Identified Zio. Weapon Casing 15632 | -7/Deep Caves | Found Zio. Weapon Casing 15775 | -7/Deep Caves | Found Prototype Protection 15775 | -7/Deep Caves | Identified Zio. Heavy Carapace 15969 | -7/Deep Caves | Discovered new exit (range 7) 16081 | -7/Deep Caves | Build established: Gunner 16287 | -7/Deep Caves | Z-Facility disabled 16651 | -7/Deep Caves | Build established: Construct 17091 | -7/Deep Caves | Found Zio. Weapon Casing 17273 | -7/Deep Caves | Found Zio. Weapon Casing 17275 | -7/Deep Caves | Found Zio. Heavy Carapace 17534 | -7/Deep Caves | Found Zio. Weapon Casing 17543 | -7/Deep Caves | Found Zio. Heavy Carapace 17548 | -7/Deep Caves | Found Zio. Weapon Casing 17550 | -7/Deep Caves | Found Zio. Weapon Casing 17553 | -7/Deep Caves | Found Zio. Weapon Casing 19067 | -7/Deep Caves | Spotted AG-54119 19070 | -7/Deep Caves | Found Prototype Special Weapon 19078 | -7/Deep Caves | Exposed GOLEM chamber 19079 | -7/Deep Caves | Triggered Deep Caves wall 19118 | -7/Deep Caves | Identified Field Lobotomy Kit 19135 | -7/Deep Caves | Entered Proximity Caves 19160 | -6/Proximity Caves | Learned Factory emergency access door positions 19207 | -6/Proximity Caves | Learned 8 Factory zone layouts 19344 | -6/Proximity Caves | Identified Hacking Drone Bay 19819 | -6/Proximity Caves | Attracted the attention of an 0b10 checkpoint 19882 | -6/Proximity Caves | Discovered new exit (range 10) 19930 | -6/Proximity Caves | Identified exit to Factory 19931 | -6/Proximity Caves | Entered Factory 19931 | -6/Factory | Evolved 2 slots: Propulsion x2 19933 | -6/Factory | Loaded intel: 122 trap records 20228 | -6/Factory | Identified exit to Lower Caves 20228 | -6/Factory | Identified exit to Extension 20634 | -6/Factory | Discovered new exit (range 14) 20819 | -6/Factory | Identified exit to Factory 21525 | -6/Factory | Entered Extension 21556 | -6/Extension | Rescued a captive Derelict 21596 | -6/Extension | Rescued a captive Derelict 21994 | -6/Extension | Rescued a captive Derelict 21995 | -6/Extension | Rescued a captive Derelict 22067 | -6/Extension | Build established: Commander-Construct 22094 | -6/Extension | Spotted B-75 Beast 22102 | -6/Extension | Spotted B-75 Beast 22129 | -6/Extension | Destroyed B-75 Beast 22229 | -6/Extension | Rescued a captive Derelict 22260 | -6/Extension | Rescued a captive Derelict 22315 | -6/Extension | Lost 3 allies 22851 | -6/Extension | Rescued A7 22907 | -6/Extension | Discovered new exit (range 6) 22973 | -6/Extension | Entered Cetus 22973 | -6/Cetus | Accompanied by 14 allies (A7) 22978 | -6/Cetus | Acquired a Cetus Manufacturing Module code from A7 22989 | -6/Cetus | Spotted Cetus Guard 22989 | -6/Cetus | Spotted Cetus Guard 22990 | -6/Cetus | Spotted Cetus Guard 22992 | -6/Cetus | Spotted Cetus Guard 23003 | -6/Cetus | Allies destroyed Cetus Guard 23005 | -6/Cetus | Destroyed Cetus Guard 23008 | -6/Cetus | Allies destroyed Cetus Guard 23010 | -6/Cetus | Destroyed Cetus Guard 23038 | -6/Cetus | Lost 6 allies 23083 | -6/Cetus | Started Cetus Manufacturing Module 23108 | -6/Cetus | Manufactured an Enhanced Grunt 23110 | -6/Cetus | Escorted A7 to Cetus Mainframe 23133 | -6/Cetus | Manufactured an Enhanced Grunt 23158 | -6/Cetus | Manufactured an Enhanced Grunt 23183 | -6/Cetus | Manufactured an Enhanced Grunt 23208 | -6/Cetus | Manufactured an Enhanced Grunt 23228 | -6/Cetus | Discovered new exit (range 16) 23252 | -6/Cetus | Spotted Cetus Guard 23252 | -6/Cetus | Spotted Cetus Guard 23254 | -6/Cetus | Spotted Cetus Guard 23258 | -6/Cetus | Allies destroyed Cetus Guard 23263 | -6/Cetus | Destroyed Cetus Guard 23264 | -6/Cetus | Spotted Cetus Guard 23265 | -6/Cetus | Discovered exit to Factory (range 15) 23268 | -6/Cetus | Allies destroyed Cetus Guard 23272 | -6/Cetus | Allies destroyed Cetus Guard 23273 | -6/Cetus | Met Revision 17 23438 | -6/Cetus | Entered Archives 23438 | -6/Archives | Accompanied by 11 allies (A7) 23443 | -6/Archives | Received a hacking code to weaken MAIN.C 23465 | -6/Archives | Discovered new exit (range 15) 23528 | -6/Archives | Discovered new exit (range 16) 23950 | -6/Archives | Discovered exit to Factory (range 16) 25091 | -6/Archives | Entered Hub_04(d) 25091 | -6/Hub_04(d) | Accompanied by 10 allies 25140 | -6/Hub_04(d) | Discovered exit to Factory (range 10) 25242 | -6/Hub_04(d) | Lost 5 allies 25242 | -6/Hub_04(d) | Discovered exit to Factory (range 10) 25385 | -6/Hub_04(d) | Network Hub disabled 25432 | -6/Hub_04(d) | Network Hub disabled 25441 | -6/Hub_04(d) | First assault squad dispatched 25508 | -6/Hub_04(d) | Build established: Hacker-Construct 25529 | -6/Hub_04(d) | Lost 4 allies 25624 | -6/Hub_04(d) | Network Hub disabled 25631 | -6/Hub_04(d) | Spotted Lightning 25632 | -6/Hub_04(d) | Spotted Lightning 25637 | -6/Hub_04(d) | Spotted Lightning 25672 | -6/Hub_04(d) | System corruption reached 10% 25675 | -6/Hub_04(d) | Entered Factory 25675 | -5/Factory | Evolved 2 slots: Utility x1, Weapon x1 25810 | -5/Factory | Build established: Construct 26084 | -5/Factory | Found Launcher Loader 26745 | -5/Factory | Found Prototype Launcher 26745 | -5/Factory | Identified Rocket Array 26767 | -5/Factory | Discovered new exit (range 6) 26773 | -5/Factory | Identified exit to Factory 27358 | -5/Factory | Discovered exit to Factory (range 14) 27378 | -5/Factory | Identified exit to Upper Caves 27525 | -5/Factory | Fabricated Weapon Mount (x2) 27775 | -5/Factory | First assault squad dispatched 27919 | -5/Factory | Entered Upper Caves 28170 | -5/Upper Caves | Build established: Mutant 28483 | -5/Upper Caves | Build established: Assassin 28765 | -5/Upper Caves | Spotted B-75 Beast 29225 | -5/Upper Caves | Attacked by a delusional Derelict stockpiling parts 29582 | -5/Upper Caves | Build established: Construct 29630 | -5/Upper Caves | Discovered new exit (range 16) 29714 | -5/Upper Caves | Identified exit to Upper Caves 29820 | -5/Upper Caves | Entered another Upper Caves area 29888 | -5/Upper Caves | Discovered exit to Factory (range 5) 30031 | -5/Upper Caves | Attracted the attention of an 0b10 checkpoint 31896 | -5/Upper Caves | Discovered new exit (range 4) 31899 | -5/Upper Caves | Identified exit to Zhirov 31934 | -5/Upper Caves | Entered Zhirov 31934 | -5/Zhirov | Discovered new exit (range 3) 31958 | -5/Zhirov | Met Zhirov 31986 | -5/Zhirov | Zhirov requested help retrieving the SGEMP Prototype 32016 | -5/Zhirov | Learned location of Quarantine (-3) 32016 | -5/Zhirov | Learned location of Testing (-2) 32016 | -5/Zhirov | Learned location of Command (-1) 32062 | -5/Zhirov | Found Alien Artifact 32062 | -5/Zhirov | Identified Integrated Reactor 32062 | -5/Zhirov | Installed Integrated Reactor, increased core energy generation (+10) 32084 | -5/Zhirov | Found Alien Artifact 32386 | -5/Zhirov | Identified exit to Proximity Caves 32387 | -5/Zhirov | Entered Proximity Caves 33415 | -4/Proximity Caves | Discovered exit to Factory (range 13) 33493 | -4/Proximity Caves | Entered Factory 33493 | -4/Factory | Evolved 2 slots: Power x1, Propulsion x1 33494 | -4/Factory | Identified exit to Armory 33822 | -4/Factory | Identified exit to Upper Caves 33842 | -4/Factory | Garrison activated, responded to threat 33870 | -4/Factory | System corruption reached 10% 34025 | -4/Factory | Entered Upper Caves 34095 | -4/Upper Caves | A Commander dispatched an escort 34102 | -4/Upper Caves | Learned Research trap positions 34281 | -4/Upper Caves | Found Alien Artifact 34366 | -4/Upper Caves | Discovered new exit (range 11) 34474 | -4/Upper Caves | Identified exit to Upper Caves 34476 | -4/Upper Caves | Learned Research emergency access door positions 34478 | -4/Upper Caves | Entered another Upper Caves area 34478 | -4/Upper Caves | Accompanied by 2 allies 34479 | -4/Upper Caves | Commander's escort returned to base 34479 | -4/Upper Caves | Commander's escort returned to base 34479 | -4/Upper Caves | Identified exit to Warlord 34513 | -4/Upper Caves | Discovered new exit (range 8) 34590 | -4/Upper Caves | Spotted B-86 Titan 34784 | -4/Upper Caves | Learned location of 1 exit from Upper Caves 34871 | -4/Upper Caves | Learned Research emergency access door positions 34921 | -4/Upper Caves | Encountered a Warlord checkpoint 34983 | -4/Upper Caves | Entered Warlord 35001 | -4/Warlord | System corruption cleaned by Quarantine Array 35130 | -4/Warlord | Found Prototype Device 35131 | -4/Warlord | Identified Minesniffer Drone Bay 35133 | -4/Warlord | Found Minesniffer Drone Bay 35135 | -4/Warlord | Found Minesniffer Drone Bay 35137 | -4/Warlord | Found Minesniffer Drone Bay 35161 | -4/Warlord | Visited the Vortex Lab 35164 | -4/Warlord | Found Prototype Energy Gun 35164 | -4/Warlord | Identified Vortex Rifle 35167 | -4/Warlord | Found Vortex Rifle 35172 | -4/Warlord | Warlord's base attacked by MAIN.C 35354 | -4/Warlord | Met Warlord 35367 | -4/Warlord | Found Prototype Device 35369 | -4/Warlord | Found Prototype Hackware 35384 | -4/Warlord | Identified Thermal Barrier 35384 | -4/Warlord | Found Prototype Reactor 35425 | -4/Warlord | Identified Vortex Chain Reactor 35427 | -4/Warlord | Identified Ghost Barrier 35473 | -4/Warlord | Found Prototype Ballistic Cannon 35486 | -4/Warlord | Warlord forces counterattacked 35544 | -4/Warlord | Build established: Commander-Construct 35575 | -4/Warlord | Lost 11 allies 35596 | -4/Warlord | Identified Hvy. Autocannon 35608 | -4/Warlord | Spotted Striker 35643 | -4/Warlord | Found Exp. Core Analyzer 35648 | -4/Warlord | Found Prototype Processor 35658 | -4/Warlord | Identified Exp. Targeting Computer 35670 | -4/Warlord | Lost 3 allies 35699 | -4/Warlord | Spotted Striker 35699 | -4/Warlord | Spotted Executioner 35731 | -4/Warlord | Discovered new exit (range 9) 35744 | -4/Warlord | Entered Proximity Caves 35744 | -3/Proximity Caves | Accompanied by 3 allies 35765 | -3/Proximity Caves | Lost 8 allies 35923 | -3/Proximity Caves | Attracted the attention of an 0b10 outpost 35963 | -3/Proximity Caves | Spotted B-86 Titan 35992 | -3/Proximity Caves | Build established: Scavenger-Construct 36083 | -3/Proximity Caves | Discovered new exit (range 9) 36087 | -3/Proximity Caves | Entered Research 36087 | -3/Research | Evolved 2 slots: Utility x2 36088 | -3/Research | Loaded intel: 82 trap records 36209 | -3/Research | Identified exit to Quarantine 36210 | -3/Research | Discovered new exit (range 17) 36287 | -3/Research | Revision forces began assault on 0b10 36360 | -3/Research | Met up with Revision 17++ 36709 | -3/Research | Build established: Construct 36725 | -3/Research | Spotted B-86 Titan 36787 | -3/Research | Research terminal network offline 36827 | -3/Research | Fabricated Cargo Storage Unit (x1) 36838 | -3/Research | Spotted Striker 36900 | -3/Research | Lost 4 allies 37004 | -3/Research | Found Prototype Protection 37004 | -3/Research | Identified Centrium Heavy Armor Plating 37035 | -3/Research | Spotted Striker 37092 | -3/Research | Entered Quarantine 37099 | -3/Quarantine | Build established: Hauler-Construct 37106 | -3/Quarantine | Found Alien Artifact 37106 | -3/Quarantine | Identified Phase Armor 37159 | -3/Quarantine | Scanned by Researcher 37176 | -3/Quarantine | Identified Transdimensional Reconstructor 37273 | -3/Quarantine | Found Alien Artifact 37344 | -3/Quarantine | Discovered new exit (range 5) 37417 | -3/Quarantine | Found Alien Artifact 37532 | -3/Quarantine | Spotted Fortress 37556 | -3/Quarantine | Discovered new exit (range 5) 37627 | -3/Quarantine | Entered Section 7 37691 | -3/Section 7 | Spotted S7 Guard 37711 | -3/Section 7 | Found Alien Artifact 37740 | -3/Section 7 | Destroyed S7 Guard 37814 | -3/Section 7 | Identified exit to Research 37842 | -3/Section 7 | Identified Core Regenerator 37842 | -3/Section 7 | Identified Core Reset Matrix 37894 | -3/Section 7 | Found Alien Artifact 37895 | -3/Section 7 | Identified Integrated Dissipator 37895 | -3/Section 7 | Installed Integrated Dissipator, increased core heat dissipation (+20) 37945 | -3/Section 7 | Found Alien Artifact 37946 | -3/Section 7 | Identified Spacefold Activator 37981 | -3/Section 7 | System corruption reached 10% 37991 | -3/Section 7 | Spotted Executioner 37997 | -3/Section 7 | Spotted Executioner 38009 | -3/Section 7 | Core integrity fell below 50% 38029 | -3/Section 7 | Spotted Alpha 7 38029 | -3/Section 7 | Spotted Alpha 7 38029 | -3/Section 7 | Spotted B-99 Colossus 38117 | -3/Section 7 | Found Alien Artifact 38117 | -3/Section 7 | Identified LRC Armor 38117 | -3/Section 7 | Installed LRC Armor, increased core integrity (+250) 38135 | -3/Section 7 | System corruption reached 30% 38143 | -3/Section 7 | Assimilated Executioner with FLK Orb 38161 | -3/Section 7 | Destroyed Alpha 7 38188 | -3/Section 7 | Warped through subspace 38217 | -3/Section 7 | Lost 8 parts (1n1u6w) 38251 | -3/Section 7 | Core integrity fell below 20% 38279 | -3/Section 7 | Used Core Regenerator, restored core integrity (+387) 38291 | -3/Section 7 | Found Integrated Dissipator 38291 | -3/Section 7 | Installed Integrated Dissipator, increased core heat dissipation (+20) 38297 | -3/Section 7 | Lost 4 parts (2p1u1w) 38332 | -3/Section 7 | Entered Research 38332 | -2/Research | Warlord forces began assault on 0b10 38332 | -2/Research | Evolved 2 slots: Propulsion x1, Utility x1 38414 | -2/Research | Met up with Warlord 38442 | -2/Research | Research machine network offline 38517 | -2/Research | Build established: Mutant 38565 | -2/Research | Borebot progress halted 38875 | -2/Research | Borebot progress halted 38909 | -2/Research | Found Prototype Device 38935 | -2/Research | Identified Exp. ECM Suite 38943 | -2/Research | Spotted Striker 38945 | -2/Research | Spotted Striker 39061 | -2/Research | Found Prototype Device 39064 | -2/Research | Identified Exp. Terrain Scanner 39102 | -2/Research | Warlord destroyed during the assault 39199 | -2/Research | Spotted Striker 39206 | -2/Research | Spotted Striker 39206 | -2/Research | Spotted Executioner 39321 | -2/Research | Found Prototype Processor 39322 | -2/Research | Identified Exp. Terrain Scan Processor 39368 | -2/Research | Discovered new exit (range 22) 39380 | -2/Research | Spotted Striker 39383 | -2/Research | Spotted Striker 39430 | -2/Research | Spotted Striker 39435 | -2/Research | Spotted Striker 39461 | -2/Research | Found Launcher Loader 39483 | -2/Research | Found Spectral Analyzer 39494 | -2/Research | Spotted Striker 39549 | -2/Research | Identified exit to Testing 39562 | -2/Research | Spotted B-90 Cyclops 39677 | -2/Research | Destroyed Striker 39736 | -2/Research | Lost 4 allies 39853 | -2/Research | Spotted Executioner 39855 | -2/Research | Spotted Striker 39871 | -2/Research | Entered Testing 39884 | -2/Testing | Found Exp. Core Analyzer 39961 | -2/Testing | Garrison activated, responded to threat 39978 | -2/Testing | Discovered new exit (range 15) 39993 | -2/Testing | Spotted PD-PZNCOW8AP5 40039 | -2/Testing | Found Prototype Device 40042 | -2/Testing | Identified 2N-1CE's Frost Array 40108 | -2/Testing | Found Prototype Device 40118 | -2/Testing | Identified Exp. Shock Absorption System 40178 | -2/Testing | Found Centrium Heavy Armor Plating 40181 | -2/Testing | Found Centrium Heavy Armor Plating 40258 | -2/Testing | Found Prototype Protection 40264 | -2/Testing | Found Prototype Protection 40280 | -2/Testing | Identified SHELL Armor 40422 | -2/Testing | Identified Hvy. Regenerative Plating 40429 | -2/Testing | Found Prototype Energy Gun 40430 | -2/Testing | Identified Hyp. EM Gauss Rifle 40489 | -2/Testing | Found Prototype Ballistic Cannon 40519 | -2/Testing | Found Prototype Device 40519 | -2/Testing | Identified Exp. Focal Shield 40546 | -2/Testing | Found Exp. Targeting Computer 40560 | -2/Testing | Found Exp. Targeting Computer 40562 | -2/Testing | Spotted Striker 40569 | -2/Testing | Spotted Striker 40592 | -2/Testing | Identified Perforator 40602 | -2/Testing | Found Prototype Energy Cannon 40634 | -2/Testing | Build established: Hauler-Construct 40719 | -2/Testing | Destroyed Striker 40720 | -2/Testing | Spotted Alpha 7 40724 | -2/Testing | Destroyed Striker 40735 | -2/Testing | Destroyed Alpha 7 40755 | -2/Testing | Identified Null Cannon 40775 | -2/Testing | Stole the SGEMP Prototype 40878 | -2/Testing | Entered Access 40878 | -1/Access | Evolved 2 slots: Utility x2 40879 | -1/Access | Delivered the SGEMP Prototype to Zhirov 40879 | -1/Access | Zhirov transferred Access data 40880 | -1/Access | Loaded intel: 120 machine locations 40880 | -1/Access | Loaded intel: 91 trap records 40880 | -1/Access | Identified exit to Surface 40880 | -1/Access | Discovered exit to Surface (range 99) 40880 | -1/Access | Identified exit to Command 40880 | -1/Access | Discovered exit to Command (range 175) 40942 | -1/Access | Zhirov warped through subspace 40972 | -1/Access | Destroyed 8 combat bots 41008 | -1/Access | Found Quantum Capacitor 41290 | -1/Access | Entered Command 41404 | -1/Command | Spotted B-99 Colossus 41449 | -1/Command | Spotted B-99 Colossus 41580 | -1/Command | First assault squad dispatched 41677 | -1/Command | Spotted M Guard 41678 | -1/Command | Spotted Combat Programmer 41684 | -1/Command | Destroyed 7 combat bots 41690 | -1/Command | Spotted Combat Programmer 41691 | -1/Command | Destroyed Combat Programmer 41692 | -1/Command | Destroyed Combat Programmer 41702 | -1/Command | Spotted M Guard 41710 | -1/Command | Destroyed M Guard 41721 | -1/Command | Destroyed M Guard 41721 | -1/Command | All MAIN.C guards destroyed 41735 | -1/Command | Found Prototype Reactor 41740 | -1/Command | Found Prototype Device 41742 | -1/Command | Identified AEGIS Remote Shield 41746 | -1/Command | Found Prototype Reactor 41752 | -1/Command | Found Prototype Launcher 41754 | -1/Command | Found Prototype Launcher 41756 | -1/Command | Found Prototype Energy Cannon 41758 | -1/Command | Found Hvy. Regenerative Plating 41793 | -1/Command | Met MAIN.C 41796 | -1/Command | 0b10 Conduit disabled 41806 | -1/Command | Destroyed MAIN.C Shell 41808 | -1/Command | MAIN.C activated Command garrisons 41813 | -1/Command | Zhirov used SGEMP to disable MAIN.C 41839 | -1/Command | Identified Zero-point Reactor (x2) 41839 | -1/Command | Identified Subatomic Replicator 41839 | -1/Command | Identified Hellfire Missile Launcher 41839 | -1/Command | Discovered exit to Surface (range 46) 41839 | -1/Command | Discovered exit to Surface (range 94) 41839 | -1/Command | Extracted map data and part IDs from MAIN.C's data core 45928 | *** | Escaped! Last Messages --------------- 45720_ G-73 Enforcer is broken beyond repair. 45758_ Acquired Nuclear Pulse Array. 45796_ Scrap Engine modifies Treaded Biometal Exoskeleton: Move Heat -4, Coverage -63, Time/Move -40, Burnout +10, -Siege Renamed Hovering Cooled-Biometal Exoskeleton. 45804_ Dropped Nuclear Pulse Array. 45806_ Acquired 9 matter. 45834_ Acquired Antigrav Array. 45855_ Arm. Scrap Engine consumes Vortex Chain Reactor. 45856_ Arm. Scrap Engine consumes Zero-point Reactor. 45893_ Scrap Engine modifies Quantum-Particle Reactor: Max Integrity +70, Supply -3 Renamed Chain-Quantum Reactor. 45913_ Attempting to rewire G-73 Enforcer. 45913_ G-73 Enforcer is broken beyond repair. Map ----- +----------------------------------------------------+ | ## ############## #????????????#?#" | | ##### #?????# #????????????#?# | | ????# #?????####+#########????????????#?# | | ##### #??????# ####################### | | = ! #??????# T" | | #### #??????# "" | | ???# #??????# | | ???# #??????## ^ ##### | | ???# #???????# #?#?# | | ???# ######### #?#?# | | ???# ^"" ^ #?#?## | | ???# """" ""^"" #?#??? | | ???# ##+############ ^""""^ ""T"" #?#### | | #####+### ## "" """ #????? | | # ## #????? | | + ## #????? | | """" # ## #????? | | """" # ## # """"T"""" # #????? | | """" + "T" ## #"""""""""""# #????? | | """" # """ ## ############# #????? | | ######+######## #???????????# #????? | | # ! #????# #???????????# #????? | | ######### #????# #???????????# #????? | | ######## "" #????# ###?????###?# #????? | | + + """#????# #??#### ### #????? | | ########!!! T"#????# @ #??# !]# #????? | | #??????#!!! """#????# #??# ]]# #????? | | ######?#!! "" #????######??# # #????? | | + #?# #????????????# # #????? | | #### #?# #????????????# ! # #????? | | !#??# #?####+#######??????????# # #????? | | #?##+#### ## #################+# ###### | | #### # ## "" ^ | | # /# ## "T | | #* # ## ##### ###################### | | # # # ########### # "" "" #####" | | # # * # + """" """" ## [ | | # # + # """" """" ## | | # # # + "" "" ##!!! | | # # # """ ## ##!!! | | # # # ""T"" ## ####### | | # #/ # "" "" ## #?????? | | # ####### ##### [ #?????? | | # #???# #?????? | | # #???##################?????? | | ###########+###########??????????????????????????? | | ??????# #????????????????????????????????? | | ??????# #????????????????????????????????? | | ??????# #????????????????????????????????? | | ??????# #????????????????????????????????? | +----------------------------------------------------+ Best States ------------- Heat Dissipation 192 Coolant Potential 50 Energy Generation 71 Energy Capacity 1315 Matter Stores 537 Matter Capacity 550 Sight Range 24 Robot Scan Range 15 Terrain Scan Range 30 Terrain Scan Density 1010 Jamming Range 16 Cloak Strength 4 Base Temperature (-) 100 EM Shielding 4 Armor Coverage 1200 Resistance: KI 30 Resistance: TH 10 Resistance: EX 50 Resistance: EM 15 Weapon Shielding 100 Point Defense Rating 240 Weapon Cycling 25 Melee Speed Boost 20 Phase Shifting 15 Evasion (%) 87 Targeting Accuracy 32 Target Analysis 10 Core Analysis 12 Armor Integrity Analysis 50 Recoil Reduction 8 Particle Charging 25 Salvage Targeting 3 Offensive Hacking 24 Item Schematics ----------------- Cargo Storage Unit | -10/Materials | Hacked Huge Storage Unit | -9/Materials | Hacked Arm. Treads | -9/Recycling | Hacked Imp. Titanium Leg | -7/Zion | Archive Fusion Compressor | -7/Zion | Archive Med. Reactive Plating | -7/Zion | Archive Matter Compressor | -7/Zion | Archive Imp. Medium Armor Plating | -7/Zion | Archive Imp. Plasma Cutter | -7/Zion | Archive Hyp. Gauss Rifle | -7/Zion | Archive Matter Filter | -7/Zion | Archive Core Analyzer | -7/Zion | Archive Imp. Medium Treads | -7/Zion | Archive Mak. Power Source | -7/Zion | Archive Mak. Hammer | -7/Zion | Archive KE Penetrator | -7/Zion | Archive Tiamat Missile Launcher | -7/Zion | Archive Weapon Mount | -6/Factory | Hacked Exp. Core Analyzer | -6/Factory | Scanalyzed Assault Drone Bay | -5/Zhirov | Free Exp. Heat Sink | -5/Zhirov | Free Exp. Optical Array | -5/Zhirov | Free Imp. Arc Thrower | -5/Zhirov | Free Electron Diverter | -3/Quarantine | Archive Cld. Gravmag System | -3/Quarantine | Archive Adv. Heavy Siege Treads | -3/Quarantine | Hacked Coolant Network | -2/Testing | Archive Robot Schematics ------------------ K-01 Serf | -9/Recycling | Hacked H-55 Commando | -7/Zion | Archive B-48 Gladiator | -7/Zion | Archive L-41 Fighter | -7/Zion | Archive A-15 Conveyor | -3/Quarantine | Archive O-32 Director | -3/Quarantine | Archive Fabricated ------------ Flak Gun | x2 | -7/Factory | Preloaded Weapon Mount | x2 | -5/Factory Cargo Storage Unit | x1 | -3/Research Alien Tech Used ----------------- Core Expander Integrated Reactor Phase Armor Integrated Dissipator Spacefold Activator LRC Armor Transdimensional Reconstructor Core Regenerator Achievements -------------- Sorry Old Pal Special Delivery Challenges ------------ None Game ------ Seed DeuteriumImpulseAmplifier Manual? 0 Play Time 09:44:49 Cumulative 405.6 hours Start 2024.05.14 @ 22:18:47 End 2024.05.16 @ 00:51:14 Sessions 9 Manual Loads 0 Difficulty Rogue Special Mode None Game No. 104 Rogue 104 Adventurer 0 Explorer 0 Win Type 0 Total 22 Types 9/3/6/1/1/0/1/0/1 Lore% 65 Gallery% 84 Achievement% 74 Wizard Run 0 Options --------- Layout 1 ASCII 0 Keyboard 0 Movement Mouse Keybinds 0 Fullscreen 1 Font 24/Smallcaps Map View 50x35 Zoom Use 19% Tactical HUD 1 Map Filters NONE Filters NONE Steam 1 RUN: 2ad3f1ac-82d9-4cef-9d84-ec0f13d504ca